{"text_format":"1","workbook":"xlsx","n_sheets":7,"sheets":["Deckblatt","KL170XV","KL170S","KL170","KL350","KL500","Artikelübersicht"],"not_rendered":{"charts":0,"images":1,"macros":1,"external_links":0,"defined_names":14,"comments":0,"pivot_tables":0},"unopened":[],"bounds":{"document_bytes":16777216,"sheet_cells":100000,"rows_first":2000,"rows_last":500,"rows_between":2000,"halvings":0,"cell_chars":16384,"cell_head_chars":4096},"cells_cut":0,"cells_raw":0,"read":"whole","date_system":"1900"}

{"sheet":"Deckblatt","index":0,"n_rows":50,"n_cols":28,"rows_kept":50,"cut":false,"hidden":false,"merged":[[34,1,36,7],[34,8,34,16],[35,8,35,16],[36,8,36,16],[4,11,4,17],[24,1,24,17],[26,8,26,16],[27,8,27,16],[28,8,28,16],[29,8,29,16],[22,1,22,15],[26,1,32,7],[0,19,2,24],[0,1,2,13],[7,24,7,25],[20,1,20,3],[4,2,4,8],[5,2,5,8],[5,11,5,17],[20,10,20,12],[7,19,7,20],[4,19,4,27]]}
[null,"Schnellkalkulation Komfortlüftungsanlage             Einfamilienhaus/Reihenhaus",null,null,null,null,null,null,null,null,null,null,null,null,null,null,null,null,null,"Schnellkalkulation Komfortlüftungsanlage             Einfamilienhaus/Reihenhaus"]
[]
[]
[]
[null,"Projekt Nr.:",1,null,null,null,null,null,null,null,"Datum:",{"$f":"TODAY()","v":"2025-01-27"},null,null,null,null,null,null,null,"Änderbare Zu bzw. Abluftmengen in m3/h"]
[null,"Kunde:","Mustermann",null,null,null,null,null,null,null,"Verkäufer:","Mustermann"]
[]
[null,"Zulufträume","Anz.",null,null,null,"Anz.","SN-Dim.","VT-Abg.",null,"Ablufträume","Anz.",null,null,null,"Anz.","SN-Dim.","VT-Abg.",null,"Norm Zuluftmengen",null,"Min.-WERT","Max.-WERT",null,"Norm Abluftmengen",null,"Min.-WERT","Max.-WERT"]
[null,"cWohnzimmer",null,"=",{"$f":"C9*(((C10*2)+C11)*U9)","v":0},"m3/h",{"$f":"ROUNDUP(E9/50,0)","v":0},"DN125",{"$f":"ROUNDUP(E9/25,0)","v":0},null,"cKüche",null,"=",{"$f":"L9*Z9","v":0},"m3/h",{"$f":"ROUNDUP(N9/50,0)","v":0},"DN125",{"$f":"ROUNDUP(N9/25,0)","v":0},null,"cWohnzimmer pro Person",15,"15m3/h","offen",null,"cKüche",30,"30m3/h","offen"]
[null,"aSchlafzimmer",null,"=",{"$f":"C10*U10*2","v":0},"m3/h",{"$f":"C10","v":0},"DN125",{"$f":"C10*2","v":0},null,"Bad",null,"=",{"$f":"L10*Z10","v":0},"m3/h",{"$f":"L10","v":0},"DN125",{"$f":"L10*2","v":0},null,"aSchlafzimmer pro Person",25,"20m3/h","25m3/h",null,"Bad",30,"30m3/h","50m3/h"]
[null,"aKinderzimmer",null,"=",{"$f":"C11*U11","v":0},"m3/h",{"$f":"C11","v":0},"DN100",{"$f":"C11","v":0},null,"Bad Nebennutz.",null,"=",0,"m3/h",{"$f":"L11","v":0},"DN100",{"$f":"L11","v":0},null,"aKind pro Person",25,"20m3/h","25m3/h",null,"Bad Nebennutzung",25,"25m3/h","25m3/h"]
[null,"aGästezimmer",null,"=",0,"m3/h",{"$f":"C12","v":0},"DN100",{"$f":"C12","v":0},null,"WC",null,"=",0,"m3/h",0,"DN100",{"$f":"L12","v":0},null,"aGast pro Person",25,"20m3/h","25m3/h",null,"WC",15,"15m3/h","25m3/h"]
[null,"Büro",null,"=",0,"m3/h",{"$f":"C13","v":0},"DN125",{"$f":"C13*2","v":0},null,"Speis",null,"=",0,"m3/h",0,"DN100",0,null,"Büro",30,"30m3/h","50m3/h",null,"Speis",10,"10m3/h","25m3/h"]
[null,"Schrankraum",null,"=",0,"m3/h",0,"DN100",{"$f":"C14","v":0},null,"HWR",null,"=",0,"m3/h",0,"DN100",0,null,"Schrankraum",10,"10m3/h","25m3/h",null,"Hauswirtschaftsraum",10,"10m3/h","25m3/h"]
[null,{"$f":"T15","v":"Sonstige 10-25"},null,"=",0,"m3/h",0,"DN100",{"$f":"C15","v":0},null,"Abstellraum",null,"=",0,"m3/h",0,"DN100",0,null,"Sonstige 10-25",10,"10m3/h","25m3/h",null,"Abstellraum",10,"10m3/h","25m3/h"]
[null,{"$f":"T16","v":"Sonstige 30-50"},null,"=",0,"m3/h",0,"DN125",{"$f":"C16*2","v":0},null,"Schrankraum",null,"=",0,"m3/h",0,"DN100",0,null,"Sonstige 30-50",30,"30m3/h","50m3/h",null,"Schrankraum",10,"10m3/h","25m3/h"]
[null,null,null,null,null,null,null,null,null,null,"Technikraum",null,"=",0,"m3/h",0,"DN100",0,null,null,null,null,null,null,"Technikraum",10,"10m3/h","25m3/h"]
[null,null,null,null,null,null,null,null,null,null,{"$f":"Y18","v":"Sonstige 10-25"},null,"=",0,"m3/h",0,"DN100",0,null,null,null,null,null,null,"Sonstige 10-25",10,"10m3/h","25m3/h"]
[null,null,null,null,null,null,null,null,null,null,{"$f":"Y19","v":"Sonstige 30-50"},null,"=",0,"m3/h",0,"DN125",{"$f":"L19*2","v":0},null,null,null,null,null,null,"Sonstige 30-50",30,"30m3/h","50m3/h"]
[]
[null,"Zuluftmenge",null,null,{"$f":"SUM(E9:E20)","v":0},"m3/h",null,"VT-Abg.",{"$f":"SUM(I9:I20)","v":0},null,"Abluftmenge",null,null,{"$f":"SUM(N9:N20)","v":0},"m3/h",null,"VT-Abg.",{"$f":"SUM(R9:R20)","v":0},null,"1.) Bei Änderung der Luftmengen sind die Max.-WERTE nicht zu überschreiten, da ansonsten die Materialauf-"]
[null,null,null,null,null,null,null,null,null,null,null,null,null,null,null,null,null,null,null,"stellung nicht stimmt !!!"]
[null,"Berechnete Nennluftmenge",null,null,null,null,null,null,null,null,null,null,null,null,null,null,{"$f":"MAX(E21,N21)","v":0},"m3/h",null,"2.) ACHTUNG: DATEI BITTE IM *.XLSM-FORMAT SPEICHERN"]
[]
[null,{"$f":"IF(AND(Q23<161,Q23>40),T26,IF(AND(Q23<271,Q23>160),T27,IF(AND(Q23<460,Q23>270),T28,IF(Q23<41,\"\",T29))))","v":""},null,null,null,null,null,null,null,null,null,null,null,null,null,null,null,null,null,{"$f":"db_Gerät","v":""}]
[null,null,null,null,null,null,null,null,null,null,null,null,null,null,null,null,null,null,null," -> Komfortlüftungsgerät KL170XV/170S/170 (Einsatzbereich bei 100Pa: 40-162m3/h)"]
[null,"Komfortlüftungsgeräteausführung",null,null,null,null,null,null,"Wandmontage ohne Feuchterückgewinnung ZUL rechts",null,null,null,null,null,null,null,null,0,null," -> Komfortlüftungsgerät KL350 (Einsatzbereich bei 100Pa: 100-320m3/h)"]
[null,null,null,null,null,null,null,null,"Wandmontage ohne Feuchterückgewinnung ZUL links",null,null,null,null,null,null,null,null,1,null," -> Komfortlüftungsgerät KL500 (Einsatzbereich bei 100Pa: 100-460m3/h) "]
[null,null,null,null,null,null,null,null,"Wandmontage mit Feuchterückgewinnung ZUL rechts",null,null,null,null,null,null,null,null,2]
[null,null,null,null,null,null,null,null,"Wandmontage mit Feuchterückgewinnung ZUL links",null,null,null,null,null,null,null,null,3]
[null,null,null,null,null,null,null,null,"Deckenmontage mit Feuchterückgewinnung ZUL rechts",null,null,null,null,null,null,null,null,4]
[null,null,null,null,null,null,null,null,"Deckenmontage mit Feuchterückgewinnung ZUL links",null,null,null,null,null,null,null,null,5]
[null,null,null,null,null,null,null,null,"gewählte Ausführung",null,null,null,null,null,null,null,null,0]
[]
[null,"Zu- und Abluftverteiltechnik",null,null,null,null,null,null,"Schalldämmverteiler ",null,null,null,null,null,null,null,null,0,null,"Verteiltechnik Zu- und Abluft"]
[null,null,null,null,null,null,null,null,"Sternverteiler mit Schalldämpfer",null,null,null,null,null,null,null,null,1]
[null,null,null,null,null,null,null,null,"gewählte Ausführung",null,null,null,null,null,null,null,null,0,null,"Zuluftanschlüsse:",{"$f":"ROUNDUP(E9/25,0)+C10*2+C11+C12+C13*2+C14+C15+C16*2","v":0},null,{"$f":"ROUNDUP(U37/6,0)","v":0},".. Anz Stern-VT - ZUL"]
[null,null,null,null,null,null,null,null,null,null,null,null,null,null,null,null,null,null,null,"Abluftanschlüsse:",{"$f":"ROUNDUP(N9/25,0)+L10*2+L11+L12+L13+L14+L15+L16+L17+L18+L19*2","v":0},null,{"$f":"ROUNDUP(U38/6,0)","v":0},".. Anz Stern-VT - ABL"]
[null,"Die farblich hinterlegten Felder dienen zur Auswahl der baustellenbezogenen Anlagensituation",null,null,null,null,null,null,null,null,null,null,null,null,null,null,null,null,null,"Größerer Wert:",{"$f":"MAX(db_AnzAbgZUL,db_AnzAbgABL)","v":0}]
[null,null,null,null,null,null,null,null,null,null,null,null,null,null,null,null,null,null,null,"Saugnische 100:",{"$f":"C11+C12+C14+C15+L11+L12+L13+L14+L15+L16+L17+L18","v":0}]
[null,"aSofern keine luftqualitätsabhängige Betriebsweise realisiert wird, darf der Wert mit 20m3/h pro Person ",null,null,null,null,null,null,null,null,null,null,null,null,null,null,null,null,null,"Saugnische 125:",{"$f":"ROUNDUP(E9/50,0)+ROUNDUP(N9/50,0)+C10+C13+C16+L10+L19","v":0}]
[null,"angenommen werden, wobei zu beachten ist, dass sich die CO2-Konzentration gegebenfalls über dem ",null,null,null,null,null,null,null,null,null,null,null,null,null,null,null,null,null,"Zuluftauslass 100:",{"$f":"C11+C12+C14+C15","v":0}]
[null,"Richtwert von 1.000 ppm einstellt.",null,null,null,null,null,null,null,null,null,null,null,null,null,null,null,null,null,"Zuluftauslass 125:",{"$f":"ROUNDUP(E9/50,0)+C10+C13+C16","v":0}]
[null,null,null,null,null,null,null,null,null,null,null,null,null,null,null,null,null,null,null,"Abluftventil 100:",{"$f":"L11+L12+L13+L14+L15+L16+L17+L18","v":0}]
[null,"bDer verbleibende Abluft-Volumenstrom ist auf die anderen Ablufträume aufzuteilen, wobei ein Mindest-",null,null,null,null,null,null,null,null,null,null,null,null,null,null,null,null,null,"Abluftventil 125:",{"$f":"ROUNDUP(N9/50,0)+L10+L19","v":0}]
[null,"Abluftvolumenstrom von 10m3/h je Abluftraum nicht unterschritten werden darf.",null,null,null,null,null,null,null,null,null,null,null,null,null,null,null,null,null,"Schlauch:",{"$f":"(db_AnzAbgZUL+db_AnzAbgABL)*12","v":0}]
[null,null,null,null,null,null,null,null,null,null,null,null,null,null,null,null,null,null,null,"Anzahl SD-Verteiler",{"$f":"IF(AND(db_Verteiler=0,db_AnzMaxAbg>1,db_AnzMaxAbg<15), IF(db_Luftmenge_max<301,1,2), IF(AND(db_Verteiler=0,db_AnzMaxAbg>14,db_AnzMaxAbg<29),2,0))","v":0}]
[null,"cBei Wohn-Esszimmern ist der angegebene Volumenstrom als Zuluft und Überstrom-Volumenstrom zu ",null,null,null,null,null,null,null,null,null,null,null,null,null,null,null,null,null,"Anzahl Bögen ZUL",{"$f":"IF(dB_AnzSDV=1,IF(db_AnzAbgZUL>6,db_AnzAbgZUL-6,0),IF(dB_AnzSDV=2,IF(db_AnzAbgZUL>12,db_AnzAbgZUL-12,0),0))","v":0}]
[null,"verstehen. Der Abluft-Volumenstrom im Küchenbereich ist so zu wählen, dass eine Geruchsverschleppung ",null,null,null,null,null,null,null,null,null,null,null,null,null,null,null,null,null,"Anzahl Bögen ABL",{"$f":"IF(dB_AnzSDV=1,IF(db_AnzAbgABL>6,db_AnzAbgABL-6,0),IF(dB_AnzSDV=2,IF(db_AnzAbgABL>12,db_AnzAbgABL-12,0),0))","v":0}]
[null,"größtenteils vermieden wird.",null,null,null,null,null,null,null,null,null,null,null,null,null,null,null,null,null,"Anzahl Bögen Gesamt",{"$f":"SUM(U48:U49)","v":0}]

{"sheet":"KL170XV","index":1,"n_rows":118,"n_cols":11,"rows_kept":118,"cut":false,"hidden":true,"merged":[[0,1,0,2],[0,3,1,4],[0,5,0,7],[1,1,1,2],[1,5,1,7]]}
["Projekt Nr.:",{"$f":"Deckblatt!C5","v":1},null,"MATERIALAUFSTELLUNG FRISCHLUFTGERÄT KL170XV                                      INKL. BEDIENTEIL MINI UND VORHEIZREGISTER",null,"Datum:",null,null,{"$f":"TODAY()","v":"2025-01-27"}]
["Kunde:",{"$f":"Deckblatt!C6","v":"Mustermann"},null,null,null,"Verkäufer:",null,null,{"$f":"Deckblatt!L6","v":"Mustermann"}]
[]
["Option/","Stück","Artikelnummer","Bezeichung 1","Bezeichnung 2","EH","L","Euro/EH","Euro/Summe"]
["Alternative",null,null,null,null,null,null,null,{"$f":"I98","v":2954.7699999999995}]
[]
[null,null,null,"Frischluftgerät KL170XV"]
[null,1,{"$f":"IF(Deckblatt!R33=0,K8,IF(Deckblatt!R33=1,K8,IF(Deckblatt!R33=2,K9, IF(Deckblatt!R33=3,K9, IF(Deckblatt!R33=4,K9,IF(Deckblatt!R33=5,K9,))))))","v":"KLL170XV"},{"$f":"VLOOKUP($C8,db_Artikel,3)","v":"KL Lufttechnik Lüftungsgerät KL170XV ZUL"},{"$f":"VLOOKUP($C8,db_Artikel,4)","v":"li .od.re, m. VHR (Wand)"},{"$f":"VLOOKUP($C8,db_Artikel,5)","v":"ST"},{"$f":"VLOOKUP($C8,db_Artikel,6)","v":"J"},{"$f":"VLOOKUP($C8,db_Artikel,7)","v":1778.82},{"$f":"IFERROR(B8*H8,\"\")","v":1778.82},null,"KLL170XV"]
[null,null,null,null,null,null,null,null,null,null,"KLL170XVE"]
[null,null,null,"Regelungskomponenten KL170XV"]
["Option",null,"KLLBTS",{"$f":"VLOOKUP($C11,db_Artikel,3)","v":"KL Lufttechnik Bedienteil Smart"},{"$f":"VLOOKUP($C11,db_Artikel,4)","v":"kabelgebunden"},{"$f":"VLOOKUP($C11,db_Artikel,5)","v":"ST"},{"$f":"VLOOKUP($C11,db_Artikel,6)","v":"J"},{"$f":"VLOOKUP($C11,db_Artikel,7)","v":394},{"$f":"IFERROR(B11*H11,\"\")","v":0}]
["Option",null,"KLLBTAPRA","KL Lufttechnik Aufputzrahmen für Bedien-",{"$f":"VLOOKUP($C12,db_Artikel,4)","v":"teil MINI und SMART"},"ST","N",30.52,{"$f":"IFERROR(B12*H12,\"\")","v":0}]
["Option",null,"KLLSEP","KL Lufttechnik Sensorplatine mit VOC-",{"$f":"VLOOKUP($C13,db_Artikel,4)","v":"Luftqualitäts- und Feuchtesensor"},"ST","J",233.24,{"$f":"IFERROR(B13*H13,\"\")","v":0}]
["Option",null,"KLLAUF","KL Lufttechnik Außentemperaturfühler",null,"ST","N",21.18,{"$f":"IFERROR(B14*H14,\"\")","v":0}]
[]
[null,null,null,"Zubehör KL170XV"]
["Option",null,"KLL170NHR",{"$f":"VLOOKUP($C17,db_Artikel,3)","v":"KL Lufttechnik PTC-Nachheizregister"},{"$f":"VLOOKUP($C17,db_Artikel,4)","v":"für KL170XV/KL170S/KL170"},{"$f":"VLOOKUP($C17,db_Artikel,5)","v":"ST"},{"$f":"VLOOKUP($C17,db_Artikel,6)","v":"N"},{"$f":"VLOOKUP($C17,db_Artikel,7)","v":206.04},{"$f":"IFERROR(B17*H17,\"\")","v":0}]
["Option",null,"KLL170ASPLM","KL Lufttechnik Anschlussplatte Massivwand","KL170XV/KL170S/KL170, auch f. WC Modul","ST","N",182.07,0]
["Option",null,"KLL170ASPLSW","KL Lufttechnik Anschlussplatte Ständerwand","KL170XV/KL170S/KL170, auch f. WC Modul","ST","N",150.41,0]
[null,{"$f":"IF(Deckblatt!R33=0,1,IF(Deckblatt!R33=1,1,IF(Deckblatt!R33=2,1,IF(Deckblatt!R33=3,1,IF(Deckblatt!R33=4,\"\",IF(Deckblatt!R33=5,\"\"))))))","v":1},"KLLZSIFON","KL Lufttechnik Sifon mit Geruchssperre","für KL170XV/KL170S/KL170 und KL350/500","ST","J",58.85,58.85]
[null,1,{"$f":"IF(Deckblatt!R33=0,K22,IF(Deckblatt!R33=1,K22,IF(Deckblatt!R33=2,K22,IF(Deckblatt!R33=3,K22,IF(Deckblatt!R33=4,K21,IF(Deckblatt!R33=5,K21))))))","v":"KLLZRKL80120W"},"KL Lufttechnik Revisionsklappe 80x120cm","für KL170-XV und KL-Box, Wandeinbau","ST","N",237.6,237.6,null,"KLLZRKL80120D"]
["Option",null,"KLL170XVFSET","KL Lufttechnik Filterset für KL170XV","1xZUL Filter F7, 1xABL Filter G4","SE","J",42.04,0,null,"KLLZRKL80120W"]
["Option",null,"KLL170XVFSETF9","KL Lufttechnik Filterset für KL170XV","1xZUL Filter F9, 1xABL Filter G4","SE","N",82,0]
[]
[null,null,null,"Verteiltechnik Zu- und Abluft Anbindung"]
[null,2,"KLLZSDS1251MN",{"$f":"VLOOKUP($C26,db_Artikel,3)","v":"KL Lufttechnik Flexibler Schalldämpfer"},{"$f":"VLOOKUP($C26,db_Artikel,4)","v":"DN125, 1m, 32dB bei 250Hz, 25mm"},{"$f":"VLOOKUP($C26,db_Artikel,5)","v":"ST"},{"$f":"VLOOKUP($C26,db_Artikel,6)","v":"J"},{"$f":"VLOOKUP($C26,db_Artikel,7)","v":70.58},{"$f":"IFERROR(B26*H26,\"\")","v":141.16}]
[]
[null,null,null,"Verteiltechnik Schalldämmverteiler"]
[null,{"$f":"dB_AnzSDV","v":0},"KLLSDVEPP",{"$f":"VLOOKUP($C29,db_Artikel,3)","v":"KL Lufttechnik Schalldämmverteiler "},{"$f":"VLOOKUP($C29,db_Artikel,4)","v":"3x125/160mm Eing./28x75mm Ausg."},{"$f":"VLOOKUP($C29,db_Artikel,5)","v":"ST"},null,{"$f":"VLOOKUP($C29,db_Artikel,7)","v":569.86},{"$f":"IFERROR(B29*H29,\"\")","v":0}]
[null,{"$f":"IF(B36=0,IF(db_AnzMaxAbg>14, 2,  IF(db_AnzMaxAbg>8,1,\"\")),\"\")","v":""},"KLLSDVEPPMOB",{"$f":"VLOOKUP($C30,db_Artikel,3)","v":"KL Lufttechnik Montagebügel Decke"},{"$f":"VLOOKUP($C30,db_Artikel,4)","v":"für Schalldämmverteiler SDVEPP"},{"$f":"VLOOKUP($C30,db_Artikel,5)","v":"ST"},null,{"$f":"VLOOKUP($C30,db_Artikel,7)","v":69},{"$f":"IFERROR(B30*H30,\"\")","v":""}]
[null,{"$f":"IF(B36=0,dB_AnzBog,\"\")","v":0},"PKB75/87",{"$f":"VLOOKUP($C31,db_Artikel,3)","v":"Poloplast Polokal NG Bogen PKB2134 "},{"$f":"VLOOKUP($C31,db_Artikel,4)","v":"87,5 Grad DN75"},{"$f":"VLOOKUP($C31,db_Artikel,5)","v":"ST"},null,{"$f":"VLOOKUP($C31,db_Artikel,7)","v":11.18},{"$f":"IFERROR(B31*H31,\"\")","v":0}]
[null,null,null,{"$f":"db_AnzAbgZUL","v":0},"aktive Zuluftanschlüsse"]
[null,null,null,{"$f":"db_AnzAbgABL","v":0},"aktive Abluftanschlüsse"]
[]
[null,null,null,"Anschlussplatte (max.16 Abgänge)"]
["Option",null,"KLLZSDVASPL/EPP",{"$f":"VLOOKUP($C36,db_Artikel,3)","v":"KL Lufttechnik Anschlussplatte für "},{"$f":"VLOOKUP($C36,db_Artikel,4)","v":"Schalldämmverteiler EPP"},{"$f":"VLOOKUP($C36,db_Artikel,5)","v":"ST"},null,{"$f":"VLOOKUP($C36,db_Artikel,7)","v":109},{"$f":"IFERROR(B36*H36,\"\")","v":0}]
["Option",null,"KLLZSDVASPL/EW",{"$f":"VLOOKUP($C37,db_Artikel,3)","v":"KL Lufttechnik Anschlussplattenerweiterung"},{"$f":"VLOOKUP($C37,db_Artikel,4)","v":"zu EPP-Verteiler (2 Stück)"},{"$f":"VLOOKUP($C37,db_Artikel,5)","v":"ST"},null,{"$f":"VLOOKUP($C37,db_Artikel,7)","v":88},{"$f":"IFERROR(B37*H37,\"\")","v":0}]
["Option",{"$f":"IF(B36>0,B36,\"\")","v":""},"KLLZKUNI75EPP",{"$f":"VLOOKUP($C38,db_Artikel,3)","v":"KL Lufttechnik Verbindungsset SDV"},{"$f":"VLOOKUP($C38,db_Artikel,4)","v":"und Anschlussplatte"},{"$f":"VLOOKUP($C38,db_Artikel,5)","v":"ST"},null,{"$f":"VLOOKUP($C38,db_Artikel,7)","v":51},{"$f":"IFERROR(B38*H38,\"\")","v":""}]
["Option",null,"KLLZHASAP6",{"$f":"VLOOKUP($C39,db_Artikel,3)","v":"KL Lufttechnik Schlauchhalterung "},{"$f":"VLOOKUP($C39,db_Artikel,4)","v":"zu Anschlussplatte SDV, beidseitig (1PK=2STK)"},{"$f":"VLOOKUP($C39,db_Artikel,5)","v":"PK"},null,{"$f":"VLOOKUP($C39,db_Artikel,7)","v":56.67},{"$f":"IFERROR(B39*H39,\"\")","v":0}]
["Option",null,"KLLZHASAP12",{"$f":"VLOOKUP($C40,db_Artikel,3)","v":"KL Lufttechnik Schlauchhalterung"},{"$f":"VLOOKUP($C40,db_Artikel,4)","v":"zu Anschlussplatte SDV, einseitig"},{"$f":"VLOOKUP($C40,db_Artikel,5)","v":"ST"},null,{"$f":"VLOOKUP($C40,db_Artikel,7)","v":56.67},{"$f":"IFERROR(B40*H40,\"\")","v":0}]
[]
[null,null,null,"Verteiltechnik Sternverteiler"]
[null,{"$f":"IF(db_Verteiler=1,dB_AnzSTV_ZUL+dB_AnzSTV_ABL,\"\")","v":""},{"$f":"IF(db_Verteiler=1,K43,\"\")","v":""},{"$f":"IF($C43<>\"\",VLOOKUP($C43,db_Artikel,3),\"\")","v":""},{"$f":"IF($C43<>\"\",VLOOKUP($C43,db_Artikel,4),\"\")","v":""},{"$f":"IF($C43<>\"\",VLOOKUP($C43,db_Artikel,5),\"\")","v":""},{"$f":"IF($C43<>\"\",VLOOKUP($C43,db_Artikel,6),\"\")","v":""},{"$f":"IF($C43<>\"\",VLOOKUP($C43,db_Artikel,7),\"\")","v":""},{"$f":"IFERROR(B43*H43,\"\")","v":""},null,"KLLV125756"]
[null,{"$f":"IF(db_Verteiler=1,dB_AnzSTV_ZUL+dB_AnzSTV_ABL,\"\")","v":""},{"$f":"IF(db_Verteiler=1,K44,\"\")","v":""},{"$f":"IF($C44<>\"\",VLOOKUP($C44,db_Artikel,3),\"\")","v":""},{"$f":"IF($C44<>\"\",VLOOKUP($C44,db_Artikel,4),\"\")","v":""},{"$f":"IF($C44<>\"\",VLOOKUP($C44,db_Artikel,5),\"\")","v":""},{"$f":"IF($C44<>\"\",VLOOKUP($C44,db_Artikel,6),\"\")","v":""},{"$f":"IF($C44<>\"\",VLOOKUP($C44,db_Artikel,7),\"\")","v":""},{"$f":"IFERROR(B44*H44,\"\")","v":""},null,"KLLZSNFL125"]
["Option",null,"KLLFSD752",{"$f":"VLOOKUP($C45,db_Artikel,3)","v":"KL Lufttechnik Flachschalldämpfer 2xDN75"},{"$f":"VLOOKUP($C45,db_Artikel,4)","v":"Länge 500mm, 10dB bei 250Hz"},{"$f":"VLOOKUP($C45,db_Artikel,5)","v":"ST"},{"$f":"VLOOKUP($C45,db_Artikel,6)","v":"N"},{"$f":"VLOOKUP($C45,db_Artikel,7)","v":162.44},{"$f":"IFERROR(B45*H45,\"\")","v":0}]
[]
[null,null,null,"Verteiltechnik Zu- und Abluft Allgemein"]
[null,{"$f":"ROUNDUP(dB_SchlauchLen/5,-1)*5","v":0},"KLLZSCHL75",{"$f":"VLOOKUP($C48,db_Artikel,3)","v":"KL Lufttechnik Kunststoffschlauch DN75,"},{"$f":"VLOOKUP($C48,db_Artikel,4)","v":"PE AD:75mm, ID:63mm"},{"$f":"VLOOKUP($C48,db_Artikel,5)","v":"MT"},{"$f":"VLOOKUP($C48,db_Artikel,6)","v":"J"},{"$f":"VLOOKUP($C48,db_Artikel,7)","v":4.18},{"$f":"IFERROR(B48*H48,\"\")","v":0}]
[null,{"$f":"ROUNDDOWN(B48/51,0)","v":0},"KLLZVEM75","KL Lufttechnik Verbindungsmuffe","für Kunststoffschlauch DN75","ST","J",5.19,0]
[null,{"$f":"Deckblatt!U40","v":0},"KLLZSN10075","KL Lufttechnik Saugnische DN100","1x DN75 max. 30m3/h, PE","ST","J",13.91,0]
[null,{"$f":"Deckblatt!U40","v":0},"KLLZSNFL100","KL Lufttechnik Montageflansch DN100","für Saugnische DN100, PE","ST","J",6.44,0]
["Option",null,"KLLZSNVL100","KL Lufttechnik Verlängerung","für Saugnische DN100","ST","J",5.81,0]
[null,{"$f":"Deckblatt!U41","v":0},"KLLZSN125752","KL Lufttechnik Saugnische DN125","2x DN75 max. 60m3/h, PE","ST","J",25.64,0]
[null,{"$f":"Deckblatt!U41","v":0},"KLLZSNFL125","KL Lufttechnik Montageflansch DN125","für Saugnische DN125, PE","ST","J",8.51,0]
["Option",null,"KLLZSNVL125","KL Lufttechnik Verlängerung f. Saugn.125","und Verteiler KLLV125756","ST","J",7.27,0]
[null,{"$f":"SUM(B64:B67)+SUM(B73:B74)","v":0},"KLLZSDLR63","KL Lufttechnik Schalldämm-Luftregulier-","einlage f.Saugn. DN100/125 u. Verteiler","ST","J",8.7200000000000006,0]
[]
[null,null,null,"Sichtteile"]
[null,{"$f":"Deckblatt!U42-B61-B64-B66","v":0},"KLLZZULV100",{"$f":"VLOOKUP($C59,db_Artikel,3)","v":"KL Lufttechnik Zuluftventil DN100 rund"},{"$f":"VLOOKUP($C59,db_Artikel,4)","v":"aus Stahlb. m. Einbaurahmen weiß lack."},{"$f":"VLOOKUP($C59,db_Artikel,5)","v":"ST"},{"$f":"VLOOKUP($C59,db_Artikel,6)","v":"J"},{"$f":"VLOOKUP($C59,db_Artikel,7)","v":5.61},{"$f":"IFERROR(B59*H59,\"\")","v":0}]
[null,{"$f":"Deckblatt!U43-B62-B63-B65-B67","v":0},"KLLZZULV125","KL Lufttechnik Zuluftventil DN125 rund","aus Stahlb. m. Einbaurahmen weiß lack.","ST","J",6.95,0]
["Alternative",null,"KLLZULVW100","KL Lufttechnik Zuluftventil DN100 Wandm.","aus Stahlb. m. Einbaurahmen weiß lack.","ST","J",39.24,0]
["Alternative",null,"KLLZULVW125","KL Lufttechnik Zuluftventil DN125 Wandm.","aus Stahlb. m. Einbaurahmen weiß lack.","ST","J",46.09,0]
["Alternative",null,"KLLBOA801","KL Lufttechnik Vision Designauslass Floor","DN125 ZUL-A f. Boden, Saugn.u.Reguliere.","ST","J",286.49,0]
["Alternative",null,"KLLVD100C","KL Lufttechnik Vision Designgitter Cube","DN100 ABL-G f. Decke, ZUL/ABL-G f. Wand","ST","J",66.12,0]
["Alternative",null,"KLLVD125C","KL Lufttechnik Vision Designgitter Cube","DN125 ABL-G f. Decke, ZUL/ABL-G f. Wand","ST","J",66.12,0]
["Altern. DN100",null,"KLLVD100125P","KL Lufttechnik Vision Designgitter Plane","DN100/125 ZUL-G für Decke","ST","J",66.12,0]
["Altern. DN125",null,"KLLVD100125P","KL Lufttechnik Vision Designgitter Plane","DN100/125 ZUL-G für Decke","ST","J",66.12,0]
[null,{"$f":"Deckblatt!U44-B71-B73","v":0},"KLLZABLV100","KL Lufttechnik Abluftventil DN100 rund","aus Stahlb. m. Einbaurahmen weiß lack.","ST","J",5.61,0]
[null,{"$f":"Deckblatt!U45-B72-B74","v":0},"KLLZABLV125","KL Lufttechnik Abluftventil DN125 rund","aus Stahlb. m. Einbaurahmen weiß lack.","ST","J",6.95,0]
["Alternative",null,"KLLZABLV080",{"$f":"VLOOKUP($C70,db_Artikel,3)","v":"KL Lufttechnik Abluftventil DN80"},{"$f":"VLOOKUP($C70,db_Artikel,4)","v":"Kunststoff weiß"},{"$f":"VLOOKUP($C70,db_Artikel,5)","v":"ST"},{"$f":"VLOOKUP($C70,db_Artikel,6)","v":"J"},{"$f":"VLOOKUP($C70,db_Artikel,7)","v":12.04},0]
["Alternative",null,"KLLZABLV100F","KL Lufttechnik Abluftventil DN100 quad.","m.Filter aus Stahlbl. weiß lackiert","ST","N",60.1,0]
["Alternative",null,"KLLZABLV125F","KL Lufttechnik Abluftventil DN125 quad.","m.Filter aus Stahlbl. weiß lackiert","ST","N",76.400000000000006,0]
["Alternative",null,"KLLVD100C","KL Lufttechnik Vision Designgitter Cube","DN100 ABL-G f. Decke, ZUL/ABL-G f. Wand","ST","J",66.12,0]
["Alternative",null,"KLLVD125C","KL Lufttechnik Vision Designgitter Cube","DN125 ABL-G f. Decke, ZUL/ABL-G f. Wand","ST","J",66.12,0]
[null,{"$f":"ROUNDUP(Deckblatt!U44/10,-0.1)","v":0},"KLLZVFI100",{"$f":"VLOOKUP($C75,db_Artikel,3)","v":"KL Lufttechnik Ventilfilter G2 (10"},{"$f":"VLOOKUP($C75,db_Artikel,4)","v":"Stück) 100x150mm für Abluftventil DN100"},{"$f":"VLOOKUP($C75,db_Artikel,5)","v":"PK"},{"$f":"VLOOKUP($C75,db_Artikel,6)","v":"J"},{"$f":"VLOOKUP($C75,db_Artikel,7)","v":20.14},0]
[null,{"$f":"ROUNDUP(Deckblatt!U45/10,-0.1)","v":0},"KLLZVFI125",{"$f":"VLOOKUP($C76,db_Artikel,3)","v":"KL Lufttechnik Ventilfilter G2 (10"},{"$f":"VLOOKUP($C76,db_Artikel,4)","v":"Stück) 125x150mm für Abluftventil DN125"},{"$f":"VLOOKUP($C76,db_Artikel,5)","v":"PK"},{"$f":"VLOOKUP($C76,db_Artikel,6)","v":"J"},{"$f":"VLOOKUP($C76,db_Artikel,7)","v":20.14},0]
[null,{"$f":"B73","v":0},"KLLFIH100",{"$f":"VLOOKUP($C77,db_Artikel,3)","v":"KL Lufttechnik Filterhalterung DN100 für"},{"$f":"VLOOKUP($C77,db_Artikel,4)","v":"Ventilfilter in Komb. m. Vision Designg."},{"$f":"VLOOKUP($C77,db_Artikel,5)","v":"ST"},{"$f":"VLOOKUP($C77,db_Artikel,6)","v":"N"},{"$f":"VLOOKUP($C77,db_Artikel,7)","v":14.32},0]
[null,{"$f":"B74","v":0},"KLLFIH125",{"$f":"VLOOKUP($C78,db_Artikel,3)","v":"KL Lufttechnik Filterhalterung DN125 für"},{"$f":"VLOOKUP($C78,db_Artikel,4)","v":"Ventilfilter in Komb. m. Vision Designg."},{"$f":"VLOOKUP($C78,db_Artikel,5)","v":"ST"},{"$f":"VLOOKUP($C78,db_Artikel,6)","v":"N"},{"$f":"VLOOKUP($C78,db_Artikel,7)","v":17.23},0]
[]
[null,null,null,"Systemkomponenten Aussen- und Fortluft"]
[null,2,"KLLZIRO125",{"$f":"VLOOKUP($C81,db_Artikel,3)","v":"KL Lufttechnik Isoliertes Lüftungsrohr"},{"$f":"VLOOKUP($C81,db_Artikel,4)","v":"DN125, Länge 1m, 15mm Wandst. inkl Muffe"},{"$f":"VLOOKUP($C81,db_Artikel,5)","v":"ST"},{"$f":"VLOOKUP($C81,db_Artikel,6)","v":"J"},{"$f":"VLOOKUP($C81,db_Artikel,7)","v":31.76},{"$f":"IFERROR(B81*H81,\"\")","v":63.52}]
[null,2,"KLLZIBO125","KL Lufttechnik Isolierter Bogen 90 Grad","DN125, 15mm Wandstärke inkl. Muffe","ST","J",27.82,55.64]
["Option",null,"KLLZIVB125","KL Lufttechnik Verbinder (Muffe) für","ISO-Rohrsystem DN125, 15mm Wandstärke","ST","J",9.02,0]
[null,2,"KLLZISCHE","KL Lufttechnik Befestigungsschelle für","ISO-Rohrsystem DN125 und DN160","ST","J",10.28,20.56]
[null,{"$f":"IF(OR(B86>0,B87>0,B88>0,B89>0),\"\",1)","v":1},{"$f":"IF(Deckblatt!R33=0,K86,IF(Deckblatt!R33=1,K87,IF(Deckblatt!R33=2,K86,IF(Deckblatt!R33=3,K87, IF(Deckblatt!R33=4,K86,IF(Deckblatt!R33=5,K87,))))))","v":"KLLFLA125RAF"},"KL Lufttechnik AUL-FOL Fassadenanschl.","DN125 AUL rechts","ST","J",213.62,213.62]
["Alternative",null,"KLLFLA125A",{"$f":"VLOOKUP($C86,db_Artikel,3)","v":"KL Lufttechnik AUL-Fassadenanschluss"},{"$f":"VLOOKUP($C86,db_Artikel,4)","v":"DN125 für ISO-Rohrsystem 125/155"},{"$f":"VLOOKUP($C86,db_Artikel,5)","v":"ST"},"J",{"$f":"VLOOKUP($C86,db_Artikel,7)","v":137.33000000000001},0,null,"KLLFLA125RAF"]
["Alternative",null,"KLLFLA125F",{"$f":"VLOOKUP($C87,db_Artikel,3)","v":"KL Lufttechnik FOL-Fassadenanschluss"},{"$f":"VLOOKUP($C87,db_Artikel,4)","v":"DN125 für ISO-Rohrsystem 125/155"},{"$f":"VLOOKUP($C87,db_Artikel,5)","v":"ST"},"J",{"$f":"VLOOKUP($C87,db_Artikel,7)","v":188.6},0,null,"KLLFLA125LAF"]
["Alternative",null,"KLLFLA125AF",{"$f":"VLOOKUP($C88,db_Artikel,3)","v":"KL Lufttechnik AUL/FOL-Fassadenanschluss"},{"$f":"VLOOKUP($C88,db_Artikel,4)","v":"DN125 für ISO-Rohrsystem 125/155"},{"$f":"VLOOKUP($C88,db_Artikel,5)","v":"ST"},"N",{"$f":"VLOOKUP($C88,db_Artikel,7)","v":34.880000000000003},0]
["Alternative",null,"KLLZDAHAU125","KL Lufttechnik Dachhaube DN125","ohne Dachpfanne","ST","N",187.57,0]
["Alternative",null,"KLLZDAPF125","KL Lufttechnik Dachpfanne DN125","für 25-45 Grad Dachneigung","ST","N",162.86000000000001,0]
[]
[null,null,null,"Inbetriebnahme und Anlageneinregulierung"]
[null,1,"HOIBNKLWRL",{"$f":"VLOOKUP($C93,db_Artikel,3)","v":"Inbetriebnahme und Anlageneinregulierung"},{"$f":"VLOOKUP($C93,db_Artikel,4)","v":" "},{"$f":"VLOOKUP($C93,db_Artikel,5)","v":"PA"},{"$f":"VLOOKUP($C93,db_Artikel,6)","v":"J"},{"$f":"VLOOKUP($C93,db_Artikel,7)","v":385},{"$f":"IFERROR(B93*H93,\"\")","v":385}]
[]
[null,null,null,"Planung"]
["Option",null,"PLANMODUL2/1",{"$f":"VLOOKUP($C96,db_Artikel,3)","v":"Planung einer Komfortlüftungsanlage inkl. 2D-"},{"$f":"VLOOKUP($C96,db_Artikel,4)","v":"Plänen, Luftmengen u. Massenauszug "},{"$f":"VLOOKUP($C96,db_Artikel,5)","v":"PA"},{"$f":"VLOOKUP($C96,db_Artikel,6)","v":"J"},{"$f":"VLOOKUP($C96,db_Artikel,7)","v":175},{"$f":"IFERROR(B96*H96,\"\")","v":0}]
[]
["BRUTTOLISTENPREIS in Euro exkl. MwSt.",null,null,null,null,null,null,"€",{"$f":"SUM(I8:I97)","v":2954.7699999999995}]
[]
["gültig bis 31.12.2025. KL-Lufttechnik übernimmt keine Gewähr für zukünftige Preisänderungen."]
[]
["ANNAHMEN: ","pro Zu- bzw. Abluftleitung wurde eine Länge von 12 m angenommen"]
[null,"für die Verteileranbindung wurden 2 Schalldämpfer mit einer Länge von je 1m angenommen"]
[null,"für die Aussen- bzw. Fortluftleitung wurde insgesamt eine Leitungslänge von 2m inkl. Befestigung bzw. 2 Bögen angenommen"]
[null,"für die  Aussenluftansaugung bzw. für die Fortluftausblasung wurde ein kombiniertes Wandgitter einkalkuliert"]
[]
["ACHTUNG:","Der vorliegende Kalkulationsvorschlag ist lediglich ein Kostenvoranschlag. "]
[null,"Sofern nicht anders angegeben, wird bei dem Kalkulationsvorschlag von einer üblichen Raumbelegung (Schlafzimmer 2 Pers,; Kind/"]
[null,"Gast/Büro je 1 Pers.; (Wohn-/Esszimmer im Mittel 3-4 Pers.) ausgegangen."]
[null,"Die Berechnung basiert auf der Grundlage der Ö Norm H 6038:2014"]
[null,"Etwaige zusätzliche Formteile (T-Stücke, Reduktionen…) sind nicht im Angebot enthalten"]
[]
["HAFTUNGSAUSSCHLUSS: "]
[null,"Die zur Verfügung gestellten Berechnungsergebnisse und Unterlagen sind vom ausführenden Installateur vor der Verwendung im Geschäftsbereich"]
[null,"eigenverantwortlich auf Vollständigkeit und Richtigkeit zu prüfen. Für die Richtigkeit und Vollständigkeit der Berechnungsergebnisse und/oder"]
[null,"eventuelle Folgeschäden und Kosten, die aufgrund fehlerhafter Berechnung entstanden sind und/oder entstehen können, übernimmt die Firma KL-Luft-"]
[null,"technik keine Haftung. Auch die Haftung für Erfüllungsgehilfen wird ausgeschlossen. Der Haftungsausschluss gilt für vertragliche und deliktische Ansprüche"]
[null,"Ausgenommen davon bleibt die Haftung wegen Vorsatz und grober Fahrlässigkeit."]

{"sheet":"KL170S","index":2,"n_rows":117,"n_cols":11,"rows_kept":117,"cut":false,"hidden":true,"merged":[[0,1,0,2],[0,3,1,4],[0,5,0,7],[1,1,1,2],[1,5,1,7]]}
["Projekt Nr.:",{"$f":"Deckblatt!C5","v":1},null,"MATERIALAUFSTELLUNG FRISCHLUFTGERÄT KL170S                                               INKL. BEDIENTEIL MINI UND VORHEIZREGISTER",null,"Datum:",null,null,{"$f":"TODAY()","v":"2025-01-27"}]
["Kunde:",{"$f":"Deckblatt!C6","v":"Mustermann"},null,null,null,"Verkäufer:",null,null,{"$f":"Deckblatt!L6","v":"Mustermann"}]
[]
["Option/","Stück","Artikelnummer","Bezeichung 1","Bezeichnung 2","EH","L","Euro/EH","Euro/Summe"]
["Alternative",null,null,null,null,null,null,null,{"$f":"I97","v":3156.5599999999995}]
[]
[null,null,null,"Frischluftgerät KL170S"]
[null,1,{"$f":"IF(Deckblatt!R33=0,K8,IF(Deckblatt!R33=1,K10,IF(Deckblatt!R33=2,K9, IF(Deckblatt!R33=3,K11, IF(Deckblatt!R33=4,K9,IF(Deckblatt!R33=5,K11,))))))","v":"KLL170SRV"},{"$f":"VLOOKUP($C8,db_Artikel,3)","v":"KL Lufttechnik Lüftungsgerät KL170S ZUL"},{"$f":"VLOOKUP($C8,db_Artikel,4)","v":"rechts mit VHR (Wand)"},{"$f":"VLOOKUP($C8,db_Artikel,5)","v":"ST"},{"$f":"VLOOKUP($C8,db_Artikel,6)","v":"J"},{"$f":"VLOOKUP($C8,db_Artikel,7)","v":2218.21},{"$f":"IFERROR(B8*H8,\"\")","v":2218.21},null,"KLL170SRV"]
[null,null,null,null,null,null,null,null,null,null,"KLL170SRVE"]
[null,null,null,"Regelungskomponenten KL170S",null,null,null,null,null,null,"KLL170SLV"]
["Option",null,"KLLBTS",{"$f":"VLOOKUP($C11,db_Artikel,3)","v":"KL Lufttechnik Bedienteil Smart"},{"$f":"VLOOKUP($C11,db_Artikel,4)","v":"kabelgebunden"},{"$f":"VLOOKUP($C11,db_Artikel,5)","v":"ST"},{"$f":"VLOOKUP($C11,db_Artikel,6)","v":"J"},{"$f":"VLOOKUP($C11,db_Artikel,7)","v":394},{"$f":"IFERROR(B11*H11,\"\")","v":0},null,"KLL170SLVE"]
["Option",null,"KLLBTAPRA","KL Lufttechnik Aufputzrahmen für Bedien-","teil MINI und SMART","ST","N",30.52,{"$f":"IFERROR(B12*H12,\"\")","v":0}]
["Option",null,"KLLSEP","KL Lufttechnik Sensorplatine mit VOC-","Luftqualitäts- und Feuchtesensor","ST","J",233.24,{"$f":"IFERROR(B13*H13,\"\")","v":0}]
["Option",null,"KLLAUF","KL Lufttechnik Außentemperaturfühler",null,"ST","N",21.18,{"$f":"IFERROR(B14*H14,\"\")","v":0}]
[]
[null,null,null,"Zubehör KL170S"]
["Option",null,"KLL170NHR",{"$f":"VLOOKUP($C17,db_Artikel,3)","v":"KL Lufttechnik PTC-Nachheizregister"},{"$f":"VLOOKUP($C17,db_Artikel,4)","v":"für KL170XV/KL170S/KL170"},{"$f":"VLOOKUP($C17,db_Artikel,5)","v":"ST"},{"$f":"VLOOKUP($C17,db_Artikel,6)","v":"N"},{"$f":"VLOOKUP($C17,db_Artikel,7)","v":206.04},{"$f":"IFERROR(B17*H17,\"\")","v":0}]
["Option",null,"KLL170ASPLM","KL Lufttechnik Anschlussplatte Massivwand","KL170XV/KL170S/KL170, auch f. WC Modul","ST","N",182.07,0]
["Option",null,"KLL170ASPLSW","KL Lufttechnik Anschlussplatte Ständerwand","KL170XV/KL170S/KL170, auch f. WC Modul","ST","N",150.41,0]
[null,{"$f":"IF(Deckblatt!R33=0,1,IF(Deckblatt!R33=1,1,IF(Deckblatt!R33=2,1,IF(Deckblatt!R33=3,1,IF(Deckblatt!R33=4,\"\",IF(Deckblatt!R33=5,\"\"))))))","v":1},"KLLZSIFON","KL Lufttechnik Sifon mit Geruchssperre","für KL170XV/KL170S/KL170 und KL350/500","ST","J",58.85,58.85]
["Option",null,"KLL170FSET","KL Lufttechnik 1x ZUL Filter F7 250x","250x47mm, 1x ABL Filter G4 250x230x47mm","SE","J",50.76,0]
["Option",null,"KLL170FSETF9","KL Lufttechnik 1x ZUL Filter F9 250x","250x47mm, 1x ABL Filter G4 250x230x47mm","SE","J",94.15,0]
[]
[null,null,null,"Verteiltechnik Zu- und Abluft Anbindung"]
[null,2,"KLLZSDS1251MN",{"$f":"VLOOKUP($C25,db_Artikel,3)","v":"KL Lufttechnik Flexibler Schalldämpfer"},{"$f":"VLOOKUP($C25,db_Artikel,4)","v":"DN125, 1m, 32dB bei 250Hz, 25mm"},{"$f":"VLOOKUP($C25,db_Artikel,5)","v":"ST"},{"$f":"VLOOKUP($C25,db_Artikel,6)","v":"J"},{"$f":"VLOOKUP($C25,db_Artikel,7)","v":70.58},{"$f":"IFERROR(B25*H25,\"\")","v":141.16}]
[]
[null,null,null,"Verteiltechnik Schalldämmverteiler"]
[null,{"$f":"dB_AnzSDV","v":0},"KLLSDVEPP",{"$f":"VLOOKUP($C28,db_Artikel,3)","v":"KL Lufttechnik Schalldämmverteiler "},{"$f":"VLOOKUP($C28,db_Artikel,4)","v":"3x125/160mm Eing./28x75mm Ausg."},{"$f":"VLOOKUP($C28,db_Artikel,5)","v":"ST"},null,{"$f":"VLOOKUP($C28,db_Artikel,7)","v":569.86},{"$f":"IFERROR(B28*H28,\"\")","v":0}]
[null,{"$f":"IF(B35=0,IF(db_AnzMaxAbg>14, 2,  IF(db_AnzMaxAbg>8,1,\"\")),\"\")","v":""},"KLLSDVEPPMOB",{"$f":"VLOOKUP($C29,db_Artikel,3)","v":"KL Lufttechnik Montagebügel Decke"},{"$f":"VLOOKUP($C29,db_Artikel,4)","v":"für Schalldämmverteiler SDVEPP"},{"$f":"VLOOKUP($C29,db_Artikel,5)","v":"ST"},null,{"$f":"VLOOKUP($C29,db_Artikel,7)","v":69},{"$f":"IFERROR(B29*H29,\"\")","v":""}]
[null,{"$f":"IF(B35=0,dB_AnzBog,\"\")","v":0},"PKB75/87",{"$f":"VLOOKUP($C30,db_Artikel,3)","v":"Poloplast Polokal NG Bogen PKB2134 "},{"$f":"VLOOKUP($C30,db_Artikel,4)","v":"87,5 Grad DN75"},{"$f":"VLOOKUP($C30,db_Artikel,5)","v":"ST"},null,{"$f":"VLOOKUP($C30,db_Artikel,7)","v":11.18},{"$f":"IFERROR(B30*H30,\"\")","v":0}]
[null,null,null,{"$f":"db_AnzAbgZUL","v":0},"aktive Zuluftanschlüsse"]
[null,null,null,{"$f":"db_AnzAbgABL","v":0},"aktive Abluftanschlüsse"]
[]
[null,null,null,"Anschlussplatte (max.16 Abgänge)"]
["Option",null,"KLLZSDVASPL/EPP",{"$f":"VLOOKUP($C35,db_Artikel,3)","v":"KL Lufttechnik Anschlussplatte für "},{"$f":"VLOOKUP($C35,db_Artikel,4)","v":"Schalldämmverteiler EPP"},{"$f":"VLOOKUP($C35,db_Artikel,5)","v":"ST"},null,{"$f":"VLOOKUP($C35,db_Artikel,7)","v":109},{"$f":"IFERROR(B35*H35,\"\")","v":0}]
["Option",null,"KLLZSDVASPL/EW",{"$f":"VLOOKUP($C36,db_Artikel,3)","v":"KL Lufttechnik Anschlussplattenerweiterung"},{"$f":"VLOOKUP($C36,db_Artikel,4)","v":"zu EPP-Verteiler (2 Stück)"},{"$f":"VLOOKUP($C36,db_Artikel,5)","v":"ST"},null,{"$f":"VLOOKUP($C36,db_Artikel,7)","v":88},{"$f":"IFERROR(B36*H36,\"\")","v":0}]
["Option",{"$f":"IF(B35>0,B35,\"\")","v":""},"KLLZKUNI75EPP",{"$f":"VLOOKUP($C37,db_Artikel,3)","v":"KL Lufttechnik Verbindungsset SDV"},{"$f":"VLOOKUP($C37,db_Artikel,4)","v":"und Anschlussplatte"},{"$f":"VLOOKUP($C37,db_Artikel,5)","v":"ST"},null,{"$f":"VLOOKUP($C37,db_Artikel,7)","v":51},{"$f":"IFERROR(B37*H37,\"\")","v":""}]
["Option",null,"KLLZHASAP6",{"$f":"VLOOKUP($C38,db_Artikel,3)","v":"KL Lufttechnik Schlauchhalterung "},{"$f":"VLOOKUP($C38,db_Artikel,4)","v":"zu Anschlussplatte SDV, beidseitig (1PK=2STK)"},{"$f":"VLOOKUP($C38,db_Artikel,5)","v":"PK"},null,{"$f":"VLOOKUP($C38,db_Artikel,7)","v":56.67},{"$f":"IFERROR(B38*H38,\"\")","v":0}]
["Option",null,"KLLZHASAP12",{"$f":"VLOOKUP($C39,db_Artikel,3)","v":"KL Lufttechnik Schlauchhalterung"},{"$f":"VLOOKUP($C39,db_Artikel,4)","v":"zu Anschlussplatte SDV, einseitig"},{"$f":"VLOOKUP($C39,db_Artikel,5)","v":"ST"},null,{"$f":"VLOOKUP($C39,db_Artikel,7)","v":56.67},{"$f":"IFERROR(B39*H39,\"\")","v":0}]
[]
[null,null,null,"Verteiltechnik Sternverteiler"]
[null,{"$f":"IF(db_Verteiler=1,dB_AnzSTV_ZUL+dB_AnzSTV_ABL,\"\")","v":""},{"$f":"IF(db_Verteiler=1,K42,\"\")","v":""},{"$f":"VLOOKUP($C42,db_Artikel,3)","v":{"$error":"#N/A"}},{"$f":"VLOOKUP($C42,db_Artikel,4)","v":{"$error":"#N/A"}},{"$f":"VLOOKUP($C42,db_Artikel,5)","v":{"$error":"#N/A"}},{"$f":"VLOOKUP($C42,db_Artikel,6)","v":{"$error":"#N/A"}},{"$f":"VLOOKUP($C42,db_Artikel,7)","v":{"$error":"#N/A"}},{"$f":"IFERROR(B42*H42,\"\")","v":""},null,"KLLV125756"]
[null,{"$f":"IF(db_Verteiler=1,dB_AnzSTV_ZUL+dB_AnzSTV_ABL,\"\")","v":""},{"$f":"IF(db_Verteiler=1,K43,\"\")","v":""},{"$f":"VLOOKUP($C43,db_Artikel,3)","v":{"$error":"#N/A"}},{"$f":"VLOOKUP($C43,db_Artikel,4)","v":{"$error":"#N/A"}},{"$f":"VLOOKUP($C43,db_Artikel,5)","v":{"$error":"#N/A"}},{"$f":"VLOOKUP($C43,db_Artikel,6)","v":{"$error":"#N/A"}},{"$f":"VLOOKUP($C43,db_Artikel,7)","v":{"$error":"#N/A"}},{"$f":"IFERROR(B43*H43,\"\")","v":""},null,"KLLZSNFL125"]
["Option",null,"KLLFSD752",{"$f":"VLOOKUP($C44,db_Artikel,3)","v":"KL Lufttechnik Flachschalldämpfer 2xDN75"},{"$f":"VLOOKUP($C44,db_Artikel,4)","v":"Länge 500mm, 10dB bei 250Hz"},{"$f":"VLOOKUP($C44,db_Artikel,5)","v":"ST"},{"$f":"VLOOKUP($C44,db_Artikel,6)","v":"N"},{"$f":"VLOOKUP($C44,db_Artikel,7)","v":162.44},{"$f":"IFERROR(B44*H44,\"\")","v":0}]
[]
[null,null,null,"Verteiltechnik Zu- und Abluft Allgemein"]
[null,{"$f":"ROUNDUP(dB_SchlauchLen/5,-1)*5","v":0},"KLLZSCHL75",{"$f":"VLOOKUP($C47,db_Artikel,3)","v":"KL Lufttechnik Kunststoffschlauch DN75,"},{"$f":"VLOOKUP($C47,db_Artikel,4)","v":"PE AD:75mm, ID:63mm"},{"$f":"VLOOKUP($C47,db_Artikel,5)","v":"MT"},{"$f":"VLOOKUP($C47,db_Artikel,6)","v":"J"},{"$f":"VLOOKUP($C47,db_Artikel,7)","v":4.18},{"$f":"IFERROR(B47*H47,\"\")","v":0}]
[null,{"$f":"ROUNDDOWN(B47/51,0)","v":0},"KLLZVEM75","KL Lufttechnik Verbindungsmuffe","für Kunststoffschlauch DN75","ST","J",5.19,0]
[null,{"$f":"Deckblatt!U40","v":0},"KLLZSN10075","KL Lufttechnik Saugnische DN100","1x DN75 max. 30m3/h, PE","ST","J",13.91,0]
[null,{"$f":"Deckblatt!U40","v":0},"KLLZSNFL100","KL Lufttechnik Montageflansch DN100","für Saugnische DN100, PE","ST","J",6.44,0]
["Option",null,"KLLZSNVL100","KL Lufttechnik Verlängerung","für Saugnische DN100","ST","J",5.81,0]
[null,{"$f":"Deckblatt!U41","v":0},"KLLZSN125752","KL Lufttechnik Saugnische DN125","2x DN75 max. 60m3/h, PE","ST","J",25.64,0]
[null,{"$f":"Deckblatt!U41","v":0},"KLLZSNFL125","KL Lufttechnik Montageflansch DN125","für Saugnische DN125, PE","ST","J",8.51,0]
["Option",null,"KLLZSNVL125","KL Lufttechnik Verlängerung f. Saugn.125","und Verteiler KLLV125756","ST","J",7.27,0]
[null,{"$f":"SUM(B63:B66)+SUM(B72:B73)","v":0},"KLLZSDLR63","KL Lufttechnik Schalldämm-Luftregulier-","einlage f.Saugn. DN100/125 u. Verteiler","ST","J",8.7200000000000006,0]
[]
[null,null,null,"Sichtteile"]
[null,{"$f":"Deckblatt!U42-B60-B63-B65","v":0},"KLLZZULV100",{"$f":"VLOOKUP($C58,db_Artikel,3)","v":"KL Lufttechnik Zuluftventil DN100 rund"},{"$f":"VLOOKUP($C58,db_Artikel,4)","v":"aus Stahlb. m. Einbaurahmen weiß lack."},{"$f":"VLOOKUP($C58,db_Artikel,5)","v":"ST"},{"$f":"VLOOKUP($C58,db_Artikel,6)","v":"J"},{"$f":"VLOOKUP($C58,db_Artikel,7)","v":5.61},{"$f":"IFERROR(B58*H58,\"\")","v":0}]
[null,{"$f":"Deckblatt!U43-B61-B62-B64-B66","v":0},"KLLZZULV125","KL Lufttechnik Zuluftventil DN125 rund","aus Stahlb. m. Einbaurahmen weiß lack.","ST","J",6.95,0]
["Alternative",null,"KLLZULVW100","KL Lufttechnik Zuluftventil DN100 Wandm.","aus Stahlb. m. Einbaurahmen weiß lack.","ST","J",39.24,0]
["Alternative",null,"KLLZULVW125","KL Lufttechnik Zuluftventil DN125 Wandm.","aus Stahlb. m. Einbaurahmen weiß lack.","ST","J",46.09,0]
["Alternative",null,"KLLBOA801","KL Lufttechnik Vision Designauslass Floor","DN125 ZUL-A f. Boden, Saugn.u.Reguliere.","ST","J",286.49,0]
["Alternative",null,"KLLVD100C","KL Lufttechnik Vision Designgitter Cube","DN100 ABL-G f. Decke, ZUL/ABL-G f. Wand","ST","J",66.12,0]
["Alternative",null,"KLLVD125C","KL Lufttechnik Vision Designgitter Cube","DN125 ABL-G f. Decke, ZUL/ABL-G f. Wand","ST","J",66.12,0]
["Altern. DN100",null,"KLLVD100125P","KL Lufttechnik Vision Designgitter Plane","DN100/125 ZUL-G für Decke","ST","J",66.12,0]
["Altern. DN125",null,"KLLVD100125P","KL Lufttechnik Vision Designgitter Plane","DN100/125 ZUL-G für Decke","ST","J",66.12,0]
[null,{"$f":"Deckblatt!U44-B70-B72","v":0},"KLLZABLV100","KL Lufttechnik Abluftventil DN100 rund","aus Stahlb. m. Einbaurahmen weiß lack.","ST","J",5.61,0]
[null,{"$f":"Deckblatt!U45-B71-B73","v":0},"KLLZABLV125","KL Lufttechnik Abluftventil DN125 rund","aus Stahlb. m. Einbaurahmen weiß lack.","ST","J",6.95,0]
["Alternative",null,"KLLZABLV080",{"$f":"VLOOKUP($C69,db_Artikel,3)","v":"KL Lufttechnik Abluftventil DN80"},{"$f":"VLOOKUP($C69,db_Artikel,4)","v":"Kunststoff weiß"},{"$f":"VLOOKUP($C69,db_Artikel,5)","v":"ST"},{"$f":"VLOOKUP($C69,db_Artikel,6)","v":"J"},{"$f":"VLOOKUP($C69,db_Artikel,7)","v":12.04},0]
["Alternative",null,"KLLZABLV100F","KL Lufttechnik Abluftventil DN100 quad.","m.Filter aus Stahlbl. weiß lackiert","ST","N",60.1,0]
["Alternative",null,"KLLZABLV125F","KL Lufttechnik Abluftventil DN125 quad.","m.Filter aus Stahlbl. weiß lackiert","ST","N",76.400000000000006,0]
["Alternative",null,"KLLVD100C","KL Lufttechnik Vision Designgitter Cube","DN100 ABL-G f. Decke, ZUL/ABL-G f. Wand","ST","J",66.12,0]
["Alternative",null,"KLLVD125C","KL Lufttechnik Vision Designgitter Cube","DN125 ABL-G f. Decke, ZUL/ABL-G f. Wand","ST","J",66.12,0]
[null,{"$f":"ROUNDUP(Deckblatt!U44/10,-0.1)","v":0},"KLLZVFI100",{"$f":"VLOOKUP($C74,db_Artikel,3)","v":"KL Lufttechnik Ventilfilter G2 (10"},{"$f":"VLOOKUP($C74,db_Artikel,4)","v":"Stück) 100x150mm für Abluftventil DN100"},{"$f":"VLOOKUP($C74,db_Artikel,5)","v":"PK"},{"$f":"VLOOKUP($C74,db_Artikel,6)","v":"J"},{"$f":"VLOOKUP($C74,db_Artikel,7)","v":20.14},0]
[null,{"$f":"ROUNDUP(Deckblatt!U45/10,-0.1)","v":0},"KLLZVFI125",{"$f":"VLOOKUP($C75,db_Artikel,3)","v":"KL Lufttechnik Ventilfilter G2 (10"},{"$f":"VLOOKUP($C75,db_Artikel,4)","v":"Stück) 125x150mm für Abluftventil DN125"},{"$f":"VLOOKUP($C75,db_Artikel,5)","v":"PK"},{"$f":"VLOOKUP($C75,db_Artikel,6)","v":"J"},{"$f":"VLOOKUP($C75,db_Artikel,7)","v":20.14},0]
[null,{"$f":"B72","v":0},"KLLFIH100",{"$f":"VLOOKUP($C76,db_Artikel,3)","v":"KL Lufttechnik Filterhalterung DN100 für"},{"$f":"VLOOKUP($C76,db_Artikel,4)","v":"Ventilfilter in Komb. m. Vision Designg."},{"$f":"VLOOKUP($C76,db_Artikel,5)","v":"ST"},{"$f":"VLOOKUP($C76,db_Artikel,6)","v":"N"},{"$f":"VLOOKUP($C76,db_Artikel,7)","v":14.32},0]
[null,{"$f":"B73","v":0},"KLLFIH125",{"$f":"VLOOKUP($C77,db_Artikel,3)","v":"KL Lufttechnik Filterhalterung DN125 für"},{"$f":"VLOOKUP($C77,db_Artikel,4)","v":"Ventilfilter in Komb. m. Vision Designg."},{"$f":"VLOOKUP($C77,db_Artikel,5)","v":"ST"},{"$f":"VLOOKUP($C77,db_Artikel,6)","v":"N"},{"$f":"VLOOKUP($C77,db_Artikel,7)","v":17.23},0]
[]
[null,null,null,"Systemkomponenten Aussen- und Fortluft"]
[null,2,"KLLZIRO125",{"$f":"VLOOKUP($C80,db_Artikel,3)","v":"KL Lufttechnik Isoliertes Lüftungsrohr"},{"$f":"VLOOKUP($C80,db_Artikel,4)","v":"DN125, Länge 1m, 15mm Wandst. inkl Muffe"},{"$f":"VLOOKUP($C80,db_Artikel,5)","v":"ST"},{"$f":"VLOOKUP($C80,db_Artikel,6)","v":"J"},{"$f":"VLOOKUP($C80,db_Artikel,7)","v":31.76},{"$f":"IFERROR(B80*H80,\"\")","v":63.52}]
[null,2,"KLLZIBO125","KL Lufttechnik Isolierter Bogen 90 Grad","DN125, 15mm Wandstärke inkl. Muffe","ST","J",27.82,55.64]
["Option",null,"KLLZIVB125","KL Lufttechnik Verbinder (Muffe) für","ISO-Rohrsystem DN125, 15mm Wandstärke","ST","J",9.02,0]
[null,2,"KLLZISCHE","KL Lufttechnik Befestigungsschelle für","ISO-Rohrsystem DN125 und DN160","ST","J",10.28,20.56]
[null,{"$f":"IF(OR(B85>0,B86>0,B87>0,B88>0),\"\",1)","v":1},{"$f":"IF(Deckblatt!R33=0,K85,IF(Deckblatt!R33=1,K86,IF(Deckblatt!R33=2,K85,IF(Deckblatt!R33=3,K86, IF(Deckblatt!R33=4,K85,IF(Deckblatt!R33=5,K86,))))))","v":"KLLFLA125RAF"},"KL Lufttechnik AUL-FOL Fassadenanschl.","DN125 AUL rechts","ST","J",213.62,213.62]
["Alternative",null,"KLLFLA125A",{"$f":"VLOOKUP($C85,db_Artikel,3)","v":"KL Lufttechnik AUL-Fassadenanschluss"},{"$f":"VLOOKUP($C85,db_Artikel,4)","v":"DN125 für ISO-Rohrsystem 125/155"},{"$f":"VLOOKUP($C85,db_Artikel,5)","v":"ST"},"J",{"$f":"VLOOKUP($C85,db_Artikel,7)","v":137.33000000000001},0,null,"KLLFLA125RAF"]
["Alternative",null,"KLLFLA125F",{"$f":"VLOOKUP($C86,db_Artikel,3)","v":"KL Lufttechnik FOL-Fassadenanschluss"},{"$f":"VLOOKUP($C86,db_Artikel,4)","v":"DN125 für ISO-Rohrsystem 125/155"},{"$f":"VLOOKUP($C86,db_Artikel,5)","v":"ST"},"J",{"$f":"VLOOKUP($C86,db_Artikel,7)","v":188.6},0,null,"KLLFLA125LAF"]
["Alternative",null,"KLLFLA125AF",{"$f":"VLOOKUP($C87,db_Artikel,3)","v":"KL Lufttechnik AUL/FOL-Fassadenanschluss"},{"$f":"VLOOKUP($C87,db_Artikel,4)","v":"DN125 für ISO-Rohrsystem 125/155"},{"$f":"VLOOKUP($C87,db_Artikel,5)","v":"ST"},"N",{"$f":"VLOOKUP($C87,db_Artikel,7)","v":34.880000000000003},0]
["Alternative",null,"KLLZDAHAU125",{"$f":"VLOOKUP($C88,db_Artikel,3)","v":"KL Lufttechnik Dachhaube DN125"},"ohne Dachpfanne","ST","N",187.57,0]
["Alternative",null,"KLLZDAPF125","KL Lufttechnik Dachpfanne DN125","für 25-45 Grad Dachneigung","ST","N",162.86000000000001,0]
[]
[null,null,null,"Inbetriebnahme und Anlageneinregulierung"]
[null,1,"HOIBNKLWRL",{"$f":"VLOOKUP($C92,db_Artikel,3)","v":"Inbetriebnahme und Anlageneinregulierung"},{"$f":"VLOOKUP($C92,db_Artikel,4)","v":" "},{"$f":"VLOOKUP($C92,db_Artikel,5)","v":"PA"},{"$f":"VLOOKUP($C92,db_Artikel,6)","v":"J"},{"$f":"VLOOKUP($C92,db_Artikel,7)","v":385},{"$f":"IFERROR(B92*H92,\"\")","v":385}]
[]
[null,null,null,"Planung"]
["Option",null,"PLANMODUL2/1",{"$f":"VLOOKUP($C95,db_Artikel,3)","v":"Planung einer Komfortlüftungsanlage inkl. 2D-"},{"$f":"VLOOKUP($C95,db_Artikel,4)","v":"Plänen, Luftmengen u. Massenauszug "},{"$f":"VLOOKUP($C95,db_Artikel,5)","v":"PA"},{"$f":"VLOOKUP($C95,db_Artikel,6)","v":"J"},{"$f":"VLOOKUP($C95,db_Artikel,7)","v":175},{"$f":"IFERROR(B95*H95,\"\")","v":0}]
[]
["BRUTTOLISTENPREIS in Euro exkl. MwSt.",null,null,null,null,null,null,"€",{"$f":"SUM(I8:I96)","v":3156.5599999999995}]
[]
["gültig bis 31.12.2025. KL-Lufttechnik übernimmt keine Gewähr für zukünftige Preisänderungen."]
[]
["ANNAHMEN: ","pro Zu- bzw. Abluftleitung wurde eine Länge von 12 m angenommen"]
[null,"für die Verteileranbindung wurden 2 Schalldämpfer mit einer Länge von je 1m angenommen"]
[null,"für die Aussen- bzw. Fortluftleitung wurde insgesamt eine Leitungslänge von 2m inkl. Befestigung bzw. 2 Bögen angenommen"]
[null,"für die  Aussenluftansaugung bzw. für die Fortluftausblasung wurde ein kombiniertes Wandgitter einkalkuliert"]
[]
["ACHTUNG:","Der vorliegende Kalkulationsvorschlag ist lediglich ein Kostenvoranschlag. "]
[null,"Sofern nicht anders angegeben, wird bei dem Kalkulationsvorschlag von einer üblichen Raumbelegung (Schlafzimmer 2 Pers,; Kind/"]
[null,"Gast/Büro je 1 Pers.; (Wohn-/Esszimmer im Mittel 3-4 Pers.) ausgegangen."]
[null,"Die Berechnung basiert auf der Grundlage der Ö Norm H 6038:2014"]
[null,"Etwaige zusätzliche Formteile (T-Stücke, Reduktionen…) sind nicht im Angebot enthalten"]
[]
["HAFTUNGSAUSSCHLUSS: "]
[null,"Die zur Verfügung gestellten Berechnungsergebnisse und Unterlagen sind vom ausführenden Installateur vor der Verwendung im Geschäftsbereich"]
[null,"eigenverantwortlich auf Vollständigkeit und Richtigkeit zu prüfen. Für die Richtigkeit und Vollständigkeit der Berechnungsergebnisse und/oder"]
[null,"eventuelle Folgeschäden und Kosten, die aufgrund fehlerhafter Berechnung entstanden sind und/oder entstehen können, übernimmt die Firma KL-Luft-"]
[null,"technik keine Haftung. Auch die Haftung für Erfüllungsgehilfen wird ausgeschlossen. Der Haftungsausschluss gilt für vertragliche und deliktische Ansprüche"]
[null,"Ausgenommen davon bleibt die Haftung wegen Vorsatz und grober Fahrlässigkeit."]

{"sheet":"KL170","index":3,"n_rows":120,"n_cols":11,"rows_kept":120,"cut":false,"hidden":true,"merged":[[0,1,0,2],[1,1,1,2],[0,5,0,7],[1,5,1,7],[0,3,1,4]]}
["Projekt Nr.:",{"$f":"Deckblatt!C5","v":1},null,"MATERIALAUFSTELLUNG FRISCHLUFTGERÄT KL170                                               INKL. BEDIENTEIL MINI UND VORHEIZREGISTER",null,"Datum:",null,null,{"$f":"TODAY()","v":"2025-01-27"}]
["Kunde:",{"$f":"Deckblatt!C6","v":"Mustermann"},null,null,null,"Verkäufer:",null,null,{"$f":"Deckblatt!L6","v":"Mustermann"}]
[]
["Option/","Stück","Artikelnummer","Bezeichung 1","Bezeichnung 2","EH","L","Euro/EH","Euro/Summe"]
["Alternative",null,null,null,null,null,null,null,{"$f":"I100","v":3454.0399999999995}]
[]
[null,null,null,"Frischluftgerät KL170"]
[null,1,{"$f":"IF(Deckblatt!R33=0,K8,IF(Deckblatt!R33=1,K10,IF(Deckblatt!R33=2,K9, IF(Deckblatt!R33=3,K11, IF(Deckblatt!R33=4,K9,IF(Deckblatt!R33=5,K11,))))))","v":"KLL170RV"},{"$f":"VLOOKUP($C8,db_Artikel,3)","v":"KL Lufttechnik Lüftungsgerät KL170 ZUL"},{"$f":"VLOOKUP($C8,db_Artikel,4)","v":"rechts mit VHR (Wand)"},{"$f":"VLOOKUP($C8,db_Artikel,5)","v":"ST"},{"$f":"VLOOKUP($C8,db_Artikel,6)","v":"N"},{"$f":"VLOOKUP($C8,db_Artikel,7)","v":2515.69},{"$f":"IFERROR(B8*H8,\"\")","v":2515.69},null,"KLL170RV"]
[null,null,null,null,null,null,null,null,null,null,"KLL170RVE"]
[null,null,null,"Regelungskomponenten KL170",null,null,null,null,null,null,"KLL170LV"]
["Option",null,"KLLBTS",{"$f":"VLOOKUP($C11,db_Artikel,3)","v":"KL Lufttechnik Bedienteil Smart"},{"$f":"VLOOKUP($C11,db_Artikel,4)","v":"kabelgebunden"},{"$f":"VLOOKUP($C11,db_Artikel,5)","v":"ST"},{"$f":"VLOOKUP($C11,db_Artikel,6)","v":"J"},{"$f":"VLOOKUP($C11,db_Artikel,7)","v":394},{"$f":"IFERROR(B11*H11,\"\")","v":0},null,"KLL170LVE"]
["Option",null,"KLLBTAPRA","KL Lufttechnik Aufputzrahmen für Bedien-","teil MINI und SMART","ST","N",30.52,{"$f":"IFERROR(B12*H12,\"\")","v":0}]
["Option",null,"KLLSEP","KL Lufttechnik Sensorplatine mit VOC-","Luftqualitäts- und Feuchtesensor","ST","J",233.24,{"$f":"IFERROR(B13*H13,\"\")","v":0}]
["Option",null,"KLLAUF","KL Lufttechnik Außentemperaturfühler",null,"ST","N",21.18,{"$f":"IFERROR(B14*H14,\"\")","v":0}]
[]
[null,null,null,"Zubehör KL170"]
["Option",null,"KLL170NHR",{"$f":"VLOOKUP($C17,db_Artikel,3)","v":"KL Lufttechnik PTC-Nachheizregister"},{"$f":"VLOOKUP($C17,db_Artikel,4)","v":"für KL170XV/KL170S/KL170"},{"$f":"VLOOKUP($C17,db_Artikel,5)","v":"ST"},{"$f":"VLOOKUP($C17,db_Artikel,6)","v":"N"},{"$f":"VLOOKUP($C17,db_Artikel,7)","v":206.04},{"$f":"IFERROR(B17*H17,\"\")","v":0}]
["Option",null,"KLL170ASPLM","KL Lufttechnik Anschlussplatte Massivwand","KL170XV/KL170S/KL170, auch f. WC Modul","ST","N",182.07,0]
["Option",null,"KLL170ASPLSW","KL Lufttechnik Anschlussplatte Ständerwand","KL170XV/KL170S/KL170, auch f. WC Modul","ST","N",150.41,0]
[null,{"$f":"IF(Deckblatt!R33=0,1,IF(Deckblatt!R33=1,1,IF(Deckblatt!R33=2,1,IF(Deckblatt!R33=3,1,IF(Deckblatt!R33=4,\"\",IF(Deckblatt!R33=5,\"\"))))))","v":1},"KLLZSIFON","KL Lufttechnik Sifon mit Geruchssperre","für KL170XV/KL170S/KL170 und KL350/500","ST","J",58.85,58.85]
["Option",null,"KLL170EBR/H",{"$f":"VLOOKUP($C21,db_Artikel,3)","v":"KL Lufttechnik Einbaurahmen für KL170"},{"$f":"VLOOKUP($C21,db_Artikel,4)","v":"2 St. lang, 1 St. kurz, 1 St. kurz/hoch"},{"$f":"VLOOKUP($C21,db_Artikel,5)","v":"SE"},{"$f":"VLOOKUP($C21,db_Artikel,6)","v":"N"},{"$f":"VLOOKUP($C21,db_Artikel,7)","v":122.07},0]
["Option",null,"KLL170EBR",{"$f":"VLOOKUP($C22,db_Artikel,3)","v":"KL Lufttechnik Einbaurahmen für KL170 2"},{"$f":"VLOOKUP($C22,db_Artikel,4)","v":"Stück lang und 2 Stück kurz"},{"$f":"VLOOKUP($C22,db_Artikel,5)","v":"SE"},{"$f":"VLOOKUP($C22,db_Artikel,6)","v":"N"},{"$f":"VLOOKUP($C22,db_Artikel,7)","v":108.99},0]
["Option",null,"KLL170EBRH","KL Lufttechnik Einbaurahmenhalterung","für KL170, 4 Stk.","SE","N",51.8,0]
["Option",null,"KLL170FSET","KL Lufttechnik 1x ZUL Filter F7 250x","250x47mm, 1x ABL Filter G4 250x230x47mm","SE","J",50.76,0]
["Option",null,"KLL170FSETF9","KL Lufttechnik 1x ZUL Filter F9 250x","250x47mm, 1x ABL Filter G4 250x230x47mm","SE","J",94.15,0]
[]
[null,null,null,"Verteiltechnik Zu- und Abluft Anbindung"]
[null,2,"KLLZSDS1251MN",{"$f":"VLOOKUP($C28,db_Artikel,3)","v":"KL Lufttechnik Flexibler Schalldämpfer"},{"$f":"VLOOKUP($C28,db_Artikel,4)","v":"DN125, 1m, 32dB bei 250Hz, 25mm"},{"$f":"VLOOKUP($C28,db_Artikel,5)","v":"ST"},{"$f":"VLOOKUP($C28,db_Artikel,6)","v":"J"},{"$f":"VLOOKUP($C28,db_Artikel,7)","v":70.58},{"$f":"IFERROR(B28*H28,\"\")","v":141.16}]
[]
[null,null,null,"Verteiltechnik Schalldämmverteiler"]
[null,{"$f":"dB_AnzSDV","v":0},"KLLSDVEPP",{"$f":"VLOOKUP($C31,db_Artikel,3)","v":"KL Lufttechnik Schalldämmverteiler "},{"$f":"VLOOKUP($C31,db_Artikel,4)","v":"3x125/160mm Eing./28x75mm Ausg."},{"$f":"VLOOKUP($C31,db_Artikel,5)","v":"ST"},null,{"$f":"VLOOKUP($C31,db_Artikel,7)","v":569.86},{"$f":"IFERROR(B31*H31,\"\")","v":0}]
[null,{"$f":"IF(B38=0,IF(db_AnzMaxAbg>14, 2,  IF(db_AnzMaxAbg>8,1,\"\")),\"\")","v":""},"KLLSDVEPPMOB",{"$f":"VLOOKUP($C32,db_Artikel,3)","v":"KL Lufttechnik Montagebügel Decke"},{"$f":"VLOOKUP($C32,db_Artikel,4)","v":"für Schalldämmverteiler SDVEPP"},{"$f":"VLOOKUP($C32,db_Artikel,5)","v":"ST"},null,{"$f":"VLOOKUP($C32,db_Artikel,7)","v":69},{"$f":"IFERROR(B32*H32,\"\")","v":""}]
[null,{"$f":"IF(B38=0,dB_AnzBog,\"\")","v":0},"PKB75/87",{"$f":"VLOOKUP($C33,db_Artikel,3)","v":"Poloplast Polokal NG Bogen PKB2134 "},{"$f":"VLOOKUP($C33,db_Artikel,4)","v":"87,5 Grad DN75"},{"$f":"VLOOKUP($C33,db_Artikel,5)","v":"ST"},null,{"$f":"VLOOKUP($C33,db_Artikel,7)","v":11.18},{"$f":"IFERROR(B33*H33,\"\")","v":0}]
[null,null,null,{"$f":"db_AnzAbgZUL","v":0},"aktive Zuluftanschlüsse"]
[null,null,null,{"$f":"db_AnzAbgABL","v":0},"aktive Abluftanschlüsse"]
[]
[null,null,null,"Anschlussplatte (max.16 Abgänge)"]
["Option",null,"KLLZSDVASPL/EPP",{"$f":"VLOOKUP($C38,db_Artikel,3)","v":"KL Lufttechnik Anschlussplatte für "},{"$f":"VLOOKUP($C38,db_Artikel,4)","v":"Schalldämmverteiler EPP"},{"$f":"VLOOKUP($C38,db_Artikel,5)","v":"ST"},null,{"$f":"VLOOKUP($C38,db_Artikel,7)","v":109},{"$f":"IFERROR(B38*H38,\"\")","v":0}]
["Option",null,"KLLZSDVASPL/EW",{"$f":"VLOOKUP($C39,db_Artikel,3)","v":"KL Lufttechnik Anschlussplattenerweiterung"},{"$f":"VLOOKUP($C39,db_Artikel,4)","v":"zu EPP-Verteiler (2 Stück)"},{"$f":"VLOOKUP($C39,db_Artikel,5)","v":"ST"},null,{"$f":"VLOOKUP($C39,db_Artikel,7)","v":88},{"$f":"IFERROR(B39*H39,\"\")","v":0}]
["Option",{"$f":"IF(B38>0,B38,\"\")","v":""},"KLLZKUNI75EPP",{"$f":"VLOOKUP($C40,db_Artikel,3)","v":"KL Lufttechnik Verbindungsset SDV"},{"$f":"VLOOKUP($C40,db_Artikel,4)","v":"und Anschlussplatte"},{"$f":"VLOOKUP($C40,db_Artikel,5)","v":"ST"},null,{"$f":"VLOOKUP($C40,db_Artikel,7)","v":51},{"$f":"IFERROR(B40*H40,\"\")","v":""}]
["Option",null,"KLLZHASAP6",{"$f":"VLOOKUP($C41,db_Artikel,3)","v":"KL Lufttechnik Schlauchhalterung "},{"$f":"VLOOKUP($C41,db_Artikel,4)","v":"zu Anschlussplatte SDV, beidseitig (1PK=2STK)"},{"$f":"VLOOKUP($C41,db_Artikel,5)","v":"PK"},null,{"$f":"VLOOKUP($C41,db_Artikel,7)","v":56.67},{"$f":"IFERROR(B41*H41,\"\")","v":0}]
["Option",null,"KLLZHASAP12",{"$f":"VLOOKUP($C42,db_Artikel,3)","v":"KL Lufttechnik Schlauchhalterung"},{"$f":"VLOOKUP($C42,db_Artikel,4)","v":"zu Anschlussplatte SDV, einseitig"},{"$f":"VLOOKUP($C42,db_Artikel,5)","v":"ST"},null,{"$f":"VLOOKUP($C42,db_Artikel,7)","v":56.67},{"$f":"IFERROR(B42*H42,\"\")","v":0}]
[]
[null,null,null,"Verteiltechnik Sternverteiler"]
[null,{"$f":"IF(db_Verteiler=1,dB_AnzSTV_ZUL+dB_AnzSTV_ABL,\"\")","v":""},{"$f":"IF(db_Verteiler=1,K45,\"\")","v":""},{"$f":"VLOOKUP($C45,db_Artikel,3)","v":{"$error":"#N/A"}},{"$f":"VLOOKUP($C45,db_Artikel,4)","v":{"$error":"#N/A"}},{"$f":"VLOOKUP($C45,db_Artikel,5)","v":{"$error":"#N/A"}},{"$f":"VLOOKUP($C45,db_Artikel,6)","v":{"$error":"#N/A"}},{"$f":"VLOOKUP($C45,db_Artikel,7)","v":{"$error":"#N/A"}},{"$f":"IFERROR(B45*H45,\"\")","v":""},null,"KLLV125756"]
[null,{"$f":"IF(db_Verteiler=1,dB_AnzSTV_ZUL+dB_AnzSTV_ABL,\"\")","v":""},{"$f":"IF(db_Verteiler=1,K46,\"\")","v":""},{"$f":"VLOOKUP($C46,db_Artikel,3)","v":{"$error":"#N/A"}},{"$f":"VLOOKUP($C46,db_Artikel,4)","v":{"$error":"#N/A"}},{"$f":"VLOOKUP($C46,db_Artikel,5)","v":{"$error":"#N/A"}},{"$f":"VLOOKUP($C46,db_Artikel,6)","v":{"$error":"#N/A"}},{"$f":"VLOOKUP($C46,db_Artikel,7)","v":{"$error":"#N/A"}},{"$f":"IFERROR(B46*H46,\"\")","v":""},null,"KLLZSNFL125"]
["Option",null,"KLLFSD752",{"$f":"VLOOKUP($C47,db_Artikel,3)","v":"KL Lufttechnik Flachschalldämpfer 2xDN75"},{"$f":"VLOOKUP($C47,db_Artikel,4)","v":"Länge 500mm, 10dB bei 250Hz"},{"$f":"VLOOKUP($C47,db_Artikel,5)","v":"ST"},{"$f":"VLOOKUP($C47,db_Artikel,6)","v":"N"},{"$f":"VLOOKUP($C47,db_Artikel,7)","v":162.44},{"$f":"IFERROR(B47*H47,\"\")","v":0}]
[]
[null,null,null,"Verteiltechnik Zu- und Abluft Allgemein"]
[null,{"$f":"ROUNDUP(dB_SchlauchLen/5,-1)*5","v":0},"KLLZSCHL75",{"$f":"VLOOKUP($C50,db_Artikel,3)","v":"KL Lufttechnik Kunststoffschlauch DN75,"},{"$f":"VLOOKUP($C50,db_Artikel,4)","v":"PE AD:75mm, ID:63mm"},{"$f":"VLOOKUP($C50,db_Artikel,5)","v":"MT"},{"$f":"VLOOKUP($C50,db_Artikel,6)","v":"J"},{"$f":"VLOOKUP($C50,db_Artikel,7)","v":4.18},{"$f":"IFERROR(B50*H50,\"\")","v":0}]
[null,{"$f":"ROUNDDOWN(B50/51,0)","v":0},"KLLZVEM75","KL Lufttechnik Verbindungsmuffe","für Kunststoffschlauch DN75","ST","J",5.19,0]
[null,{"$f":"Deckblatt!U40","v":0},"KLLZSN10075","KL Lufttechnik Saugnische DN100","1x DN75 max. 30m3/h, PE","ST","J",13.91,0]
[null,{"$f":"Deckblatt!U40","v":0},"KLLZSNFL100","KL Lufttechnik Montageflansch DN100","für Saugnische DN100, PE","ST","J",6.44,0]
["Option",null,"KLLZSNVL100","KL Lufttechnik Verlängerung","für Saugnische DN100","ST","J",5.81,0]
[null,{"$f":"Deckblatt!U41","v":0},"KLLZSN125752","KL Lufttechnik Saugnische DN125","2x DN75 max. 60m3/h, PE","ST","J",25.64,0]
[null,{"$f":"Deckblatt!U41","v":0},"KLLZSNFL125","KL Lufttechnik Montageflansch DN125","für Saugnische DN125, PE","ST","J",8.51,0]
["Option",null,"KLLZSNVL125","KL Lufttechnik Verlängerung f. Saugn.125","und Verteiler KLLV125756","ST","J",7.27,0]
[null,{"$f":"SUM(B66:B69)+SUM(B75:B76)","v":0},"KLLZSDLR63","KL Lufttechnik Schalldämm-Luftregulier-","einlage f.Saugn. DN100/125 u. Verteiler","ST","J",8.7200000000000006,0]
[]
[null,null,null,"Sichtteile"]
[null,{"$f":"Deckblatt!U42-B63-B66-B68","v":0},"KLLZZULV100",{"$f":"VLOOKUP($C61,db_Artikel,3)","v":"KL Lufttechnik Zuluftventil DN100 rund"},{"$f":"VLOOKUP($C61,db_Artikel,4)","v":"aus Stahlb. m. Einbaurahmen weiß lack."},{"$f":"VLOOKUP($C61,db_Artikel,5)","v":"ST"},{"$f":"VLOOKUP($C61,db_Artikel,6)","v":"J"},{"$f":"VLOOKUP($C61,db_Artikel,7)","v":5.61},{"$f":"IFERROR(B61*H61,\"\")","v":0}]
[null,{"$f":"Deckblatt!U43-B64-B65-B67-B69","v":0},"KLLZZULV125","KL Lufttechnik Zuluftventil DN125 rund","aus Stahlb. m. Einbaurahmen weiß lack.","ST","J",6.95,0]
["Alternative",null,"KLLZULVW100","KL Lufttechnik Zuluftventil DN100 Wandm.","aus Stahlb. m. Einbaurahmen weiß lack.","ST","J",39.24,0]
["Alternative",null,"KLLZULVW125","KL Lufttechnik Zuluftventil DN125 Wandm.","aus Stahlb. m. Einbaurahmen weiß lack.","ST","J",46.09,0]
["Alternative",null,"KLLBOA801","KL Lufttechnik Vision Designauslass Floor","DN125 ZUL-A f. Boden, Saugn.u.Reguliere.","ST","J",286.49,0]
["Alternative",null,"KLLVD100C","KL Lufttechnik Vision Designgitter Cube","DN100 ABL-G f. Decke, ZUL/ABL-G f. Wand","ST","J",66.12,0]
["Alternative",null,"KLLVD125C","KL Lufttechnik Vision Designgitter Cube","DN125 ABL-G f. Decke, ZUL/ABL-G f. Wand","ST","J",66.12,0]
["Altern. DN100",null,"KLLVD100125P","KL Lufttechnik Vision Designgitter Plane","DN100/125 ZUL-G für Decke","ST","J",66.12,0]
["Altern. DN125",null,"KLLVD100125P","KL Lufttechnik Vision Designgitter Plane","DN100/125 ZUL-G für Decke","ST","J",66.12,0]
[null,{"$f":"Deckblatt!U44-B73-B75","v":0},"KLLZABLV100","KL Lufttechnik Abluftventil DN100 rund","aus Stahlb. m. Einbaurahmen weiß lack.","ST","J",5.61,0]
[null,{"$f":"Deckblatt!U45-B74-B76","v":0},"KLLZABLV125","KL Lufttechnik Abluftventil DN125 rund","aus Stahlb. m. Einbaurahmen weiß lack.","ST","J",6.95,0]
["Alternative",null,"KLLZABLV080",{"$f":"VLOOKUP($C72,db_Artikel,3)","v":"KL Lufttechnik Abluftventil DN80"},{"$f":"VLOOKUP($C72,db_Artikel,4)","v":"Kunststoff weiß"},{"$f":"VLOOKUP($C72,db_Artikel,5)","v":"ST"},{"$f":"VLOOKUP($C72,db_Artikel,6)","v":"J"},{"$f":"VLOOKUP($C72,db_Artikel,7)","v":12.04},0]
["Alternative",null,"KLLZABLV100F","KL Lufttechnik Abluftventil DN100 quad.","m.Filter aus Stahlbl. weiß lackiert","ST","N",60.1,0]
["Alternative",null,"KLLZABLV125F","KL Lufttechnik Abluftventil DN125 quad.","m.Filter aus Stahlbl. weiß lackiert","ST","N",76.400000000000006,0]
["Alternative",null,"KLLVD100C","KL Lufttechnik Vision Designgitter Cube","DN100 ABL-G f. Decke, ZUL/ABL-G f. Wand","ST","J",66.12,0]
["Alternative",null,"KLLVD125C","KL Lufttechnik Vision Designgitter Cube","DN125 ABL-G f. Decke, ZUL/ABL-G f. Wand","ST","J",66.12,0]
[null,{"$f":"ROUNDUP(Deckblatt!U44/10,-0.1)","v":0},"KLLZVFI100",{"$f":"VLOOKUP($C77,db_Artikel,3)","v":"KL Lufttechnik Ventilfilter G2 (10"},{"$f":"VLOOKUP($C77,db_Artikel,4)","v":"Stück) 100x150mm für Abluftventil DN100"},{"$f":"VLOOKUP($C77,db_Artikel,5)","v":"PK"},{"$f":"VLOOKUP($C77,db_Artikel,6)","v":"J"},{"$f":"VLOOKUP($C77,db_Artikel,7)","v":20.14},0]
[null,{"$f":"ROUNDUP(Deckblatt!U45/10,-0.1)","v":0},"KLLZVFI125",{"$f":"VLOOKUP($C78,db_Artikel,3)","v":"KL Lufttechnik Ventilfilter G2 (10"},{"$f":"VLOOKUP($C78,db_Artikel,4)","v":"Stück) 125x150mm für Abluftventil DN125"},{"$f":"VLOOKUP($C78,db_Artikel,5)","v":"PK"},{"$f":"VLOOKUP($C78,db_Artikel,6)","v":"J"},{"$f":"VLOOKUP($C78,db_Artikel,7)","v":20.14},0]
[null,{"$f":"B75","v":0},"KLLFIH100",{"$f":"VLOOKUP($C79,db_Artikel,3)","v":"KL Lufttechnik Filterhalterung DN100 für"},{"$f":"VLOOKUP($C79,db_Artikel,4)","v":"Ventilfilter in Komb. m. Vision Designg."},{"$f":"VLOOKUP($C79,db_Artikel,5)","v":"ST"},{"$f":"VLOOKUP($C79,db_Artikel,6)","v":"N"},{"$f":"VLOOKUP($C79,db_Artikel,7)","v":14.32},0]
[null,{"$f":"B76","v":0},"KLLFIH125",{"$f":"VLOOKUP($C80,db_Artikel,3)","v":"KL Lufttechnik Filterhalterung DN125 für"},{"$f":"VLOOKUP($C80,db_Artikel,4)","v":"Ventilfilter in Komb. m. Vision Designg."},{"$f":"VLOOKUP($C80,db_Artikel,5)","v":"ST"},{"$f":"VLOOKUP($C80,db_Artikel,6)","v":"N"},{"$f":"VLOOKUP($C80,db_Artikel,7)","v":17.23},0]
[]
[null,null,null,"Systemkomponenten Aussen- und Fortluft"]
[null,2,"KLLZIRO125",{"$f":"VLOOKUP($C83,db_Artikel,3)","v":"KL Lufttechnik Isoliertes Lüftungsrohr"},{"$f":"VLOOKUP($C83,db_Artikel,4)","v":"DN125, Länge 1m, 15mm Wandst. inkl Muffe"},{"$f":"VLOOKUP($C83,db_Artikel,5)","v":"ST"},{"$f":"VLOOKUP($C83,db_Artikel,6)","v":"J"},{"$f":"VLOOKUP($C83,db_Artikel,7)","v":31.76},{"$f":"IFERROR(B83*H83,\"\")","v":63.52}]
[null,2,"KLLZIBO125","KL Lufttechnik Isolierter Bogen 90 Grad","DN125, 15mm Wandstärke inkl. Muffe","ST","J",27.82,55.64]
["Option",null,"KLLZIVB125","KL Lufttechnik Verbinder (Muffe) für","ISO-Rohrsystem DN125, 15mm Wandstärke","ST","J",9.02,0]
[null,2,"KLLZISCHE","KL Lufttechnik Befestigungsschelle für","ISO-Rohrsystem DN125 und DN160","ST","J",10.28,20.56]
[null,{"$f":"IF(OR(B88>0,B89>0,B90>0,B91>0),\"\",1)","v":1},{"$f":"IF(Deckblatt!R33=0,K88,IF(Deckblatt!R33=1,K89,IF(Deckblatt!R33=2,K88,IF(Deckblatt!R33=3,K89, IF(Deckblatt!R33=4,K88,IF(Deckblatt!R33=5,K89,))))))","v":"KLLFLA125RAF"},"KL Lufttechnik AUL-FOL Fassadenanschl.","DN125 AUL rechts","ST","J",213.62,213.62]
["Alternative",null,"KLLFLA125A",{"$f":"VLOOKUP($C88,db_Artikel,3)","v":"KL Lufttechnik AUL-Fassadenanschluss"},{"$f":"VLOOKUP($C88,db_Artikel,4)","v":"DN125 für ISO-Rohrsystem 125/155"},{"$f":"VLOOKUP($C88,db_Artikel,5)","v":"ST"},"J",{"$f":"VLOOKUP($C88,db_Artikel,7)","v":137.33000000000001},0,null,"KLLFLA125RAF"]
["Alternative",null,"KLLFLA125F",{"$f":"VLOOKUP($C89,db_Artikel,3)","v":"KL Lufttechnik FOL-Fassadenanschluss"},{"$f":"VLOOKUP($C89,db_Artikel,4)","v":"DN125 für ISO-Rohrsystem 125/155"},{"$f":"VLOOKUP($C89,db_Artikel,5)","v":"ST"},"J",{"$f":"VLOOKUP($C89,db_Artikel,7)","v":188.6},0,null,"KLLFLA125LAF"]
["Alternative",null,"KLLFLA125AF",{"$f":"VLOOKUP($C90,db_Artikel,3)","v":"KL Lufttechnik AUL/FOL-Fassadenanschluss"},{"$f":"VLOOKUP($C90,db_Artikel,4)","v":"DN125 für ISO-Rohrsystem 125/155"},{"$f":"VLOOKUP($C90,db_Artikel,5)","v":"ST"},"N",{"$f":"VLOOKUP($C90,db_Artikel,7)","v":34.880000000000003},0]
["Alternative",null,"KLLZDAHAU125","KL Lufttechnik Dachhaube DN125","ohne Dachpfanne","ST","N",187.57,0]
["Alternative",null,"KLLZDAPF125","KL Lufttechnik Dachpfanne DN125","für 25-45 Grad Dachneigung","ST","N",162.86000000000001,0]
[]
[null,null,null,"Inbetriebnahme und Anlageneinregulierung"]
[null,1,"HOIBNKLWRL",{"$f":"VLOOKUP($C95,db_Artikel,3)","v":"Inbetriebnahme und Anlageneinregulierung"},{"$f":"VLOOKUP($C95,db_Artikel,4)","v":" "},{"$f":"VLOOKUP($C95,db_Artikel,5)","v":"PA"},{"$f":"VLOOKUP($C95,db_Artikel,6)","v":"J"},{"$f":"VLOOKUP($C95,db_Artikel,7)","v":385},{"$f":"IFERROR(B95*H95,\"\")","v":385}]
[]
[null,null,null,"Planung"]
["Option",null,"PLANMODUL2/1",{"$f":"VLOOKUP($C98,db_Artikel,3)","v":"Planung einer Komfortlüftungsanlage inkl. 2D-"},{"$f":"VLOOKUP($C98,db_Artikel,4)","v":"Plänen, Luftmengen u. Massenauszug "},{"$f":"VLOOKUP($C98,db_Artikel,5)","v":"PA"},{"$f":"VLOOKUP($C98,db_Artikel,6)","v":"J"},{"$f":"VLOOKUP($C98,db_Artikel,7)","v":175},{"$f":"IFERROR(B98*H98,\"\")","v":0}]
[]
["BRUTTOLISTENPREIS in Euro exkl. MwSt.",null,null,null,null,null,null,"€",{"$f":"SUM(I8:I99)","v":3454.0399999999995}]
[]
["gültig bis 31.12.2025. KL-Lufttechnik übernimmt keine Gewähr für zukünftige Preisänderungen."]
[]
["ANNAHMEN: ","pro Zu- bzw. Abluftleitung wurde eine Länge von 12 m angenommen"]
[null,"für die Verteileranbindung wurden 2 Schalldämpfer mit einer Länge von je 1m angenommen"]
[null,"für die Aussen- bzw. Fortluftleitung wurde insgesamt eine Leitungslänge von 2m inkl. Befestigung bzw. 2 Bögen angenommen"]
[null,"für die  Aussenluftansaugung bzw. für die Fortluftausblasung wurde ein kombiniertes Wandgitter einkalkuliert"]
[]
["ACHTUNG:","Der vorliegende Kalkulationsvorschlag ist lediglich ein Kostenvoranschlag. "]
[null,"Sofern nicht anders angegeben, wird bei dem Kalkulationsvorschlag von einer üblichen Raumbelegung (Schlafzimmer 2 Pers,; Kind/"]
[null,"Gast/Büro je 1 Pers.; (Wohn-/Esszimmer im Mittel 3-4 Pers.) ausgegangen."]
[null,"Die Berechnung basiert auf der Grundlage der Ö Norm H 6038:2014"]
[null,"Etwaige zusätzliche Formteile (T-Stücke, Reduktionen…) sind nicht im Angebot enthalten"]
[]
["HAFTUNGSAUSSCHLUSS: "]
[null,"Die zur Verfügung gestellten Berechnungsergebnisse und Unterlagen sind vom ausführenden Installateur vor der Verwendung im Geschäftsbereich"]
[null,"eigenverantwortlich auf Vollständigkeit und Richtigkeit zu prüfen. Für die Richtigkeit und Vollständigkeit der Berechnungsergebnisse und/oder"]
[null,"eventuelle Folgeschäden und Kosten, die aufgrund fehlerhafter Berechnung entstanden sind und/oder entstehen können, übernimmt die Firma KL-Luft-"]
[null,"technik keine Haftung. Auch die Haftung für Erfüllungsgehilfen wird ausgeschlossen. Der Haftungsausschluss gilt für vertragliche und deliktische Ansprüche"]
[null,"Ausgenommen davon bleibt die Haftung wegen Vorsatz und grober Fahrlässigkeit."]

{"sheet":"KL350","index":4,"n_rows":116,"n_cols":11,"rows_kept":116,"cut":false,"hidden":true,"merged":[[0,1,0,2],[0,3,1,4],[0,5,0,7],[1,1,1,2],[1,5,1,7]]}
["Projekt Nr.:",{"$f":"Deckblatt!C5","v":1},null,"MATERIALAUFSTELLUNG FRISCHLUFTGERÄT KL350                                        INKL. VOC-FEUCHTESENSOR UND VORHEIZREGISTER",null,"Datum:",null,null,{"$f":"TODAY()","v":"2025-01-27"}]
["Kunde:",{"$f":"Deckblatt!C6","v":"Mustermann"},null,null,null,"Verkäufer:",null,null,{"$f":"Deckblatt!L6","v":"Mustermann"}]
[]
["Option/","Stück","Artikelnummer","Bezeichung 1","Bezeichnung 2","EH","L","Euro/EH","Euro/Summe"]
["Alternative",null,null,null,null,null,null,null,{"$f":"I96","v":4531.91}]
[]
[null,null,null,"Frischluftgerät KL350"]
[null,{"$f":"IF(B9=1,\"\",1)","v":1},{"$f":"IF(Deckblatt!R33=0,K8,IF(Deckblatt!R33=1,K12,IF(Deckblatt!R33=2,K10, IF(Deckblatt!R33=3,K14, IF(Deckblatt!R33=4,K10,IF(Deckblatt!R33=5,K14,))))))","v":"KLL350RV"},{"$f":"VLOOKUP($C8,db_Artikel,3)","v":"KL Lufttechnik Lüftungsgerät KL350 ZUL"},{"$f":"VLOOKUP($C8,db_Artikel,4)","v":"rechts mit VHR (Wand)"},{"$f":"VLOOKUP($C8,db_Artikel,5)","v":"ST"},{"$f":"VLOOKUP($C8,db_Artikel,6)","v":"N"},{"$f":"VLOOKUP($C8,db_Artikel,7)","v":3210.22},{"$f":"IFERROR(B8*H8,\"\")","v":3210.22},null,"KLL350RV"]
["Alternativ",null,{"$f":"IF(AND(C8=\"KLL350RV\"),K9,IF(AND(C8=\"KLL350RVE\"),K11,IF(AND(C8=\"KLL350LV\"),K13,IF(AND(C8=\"KLL350LVE\"),K15))))","v":"KLL350RVB"},{"$f":"VLOOKUP($C9,db_Artikel,3)","v":"KL Lufttechnik Lüftungsgerät KL350 ZUL"},{"$f":"VLOOKUP($C9,db_Artikel,4)","v":"rechts mit VHR mit Bypass (Wand)"},{"$f":"VLOOKUP($C9,db_Artikel,5)","v":"ST"},{"$f":"VLOOKUP($C9,db_Artikel,6)","v":"J"},{"$f":"VLOOKUP($C9,db_Artikel,7)","v":3477.09},{"$f":"IFERROR(B9*H9,\"\")","v":0},null,"KLL350RVB"]
[null,null,null,null,null,null,null,null,null,null,"KLL350RVE"]
[null,null,null,"Regelungskomponenten KL350",null,null,null,null,null,null,"KLL350RVBE"]
["Option",null,"KLLBTM",{"$f":"VLOOKUP($C12,db_Artikel,3)","v":"KL Lufttechnik Bedienteil Mini"},{"$f":"VLOOKUP($C12,db_Artikel,4)","v":"kabelgebunden"},{"$f":"VLOOKUP($C12,db_Artikel,5)","v":"ST"},{"$f":"VLOOKUP($C12,db_Artikel,6)","v":"J"},{"$f":"VLOOKUP($C12,db_Artikel,7)","v":97.05},{"$f":"IFERROR(B12*H12,\"\")","v":0},null,"KLL350LV"]
["Option",null,"KLLBTS","KL Lufttechnik Bedienteil Smart",{"$f":"VLOOKUP($C13,db_Artikel,4)","v":"kabelgebunden"},"ST","J",394,{"$f":"IFERROR(B13*H13,\"\")","v":0},null,"KLL350LVB"]
["Option",null,"KLLBTAPRA","KL Lufttechnik Aufputzrahmen für Bedien-",{"$f":"VLOOKUP($C14,db_Artikel,4)","v":"teil MINI und SMART"},"ST","N",30.52,{"$f":"IFERROR(B14*H14,\"\")","v":0},null,"KLL350LVE"]
["Option",null,"KLLAUF","KL Lufttechnik Außentemperaturfühler",null,"ST","N",21.18,{"$f":"IFERROR(B15*H15,\"\")","v":0},null,"KLL350LVBE"]
[]
[null,null,null,"Zubehör KL350"]
[null,{"$f":"IF(Deckblatt!R33=0,1,IF(Deckblatt!R33=1,1,IF(Deckblatt!R33=2,1,IF(Deckblatt!R33=3,1,IF(Deckblatt!R33=4,\"\",IF(Deckblatt!R33=5,\"\"))))))","v":1},"KLLZSIFON",{"$f":"VLOOKUP($C18,db_Artikel,3)","v":"KL Lufttechnik Sifon mit Geruchssperre"},{"$f":"VLOOKUP($C18,db_Artikel,4)","v":"für KL170XV/KL170S/KL170 und KL350/500"},{"$f":"VLOOKUP($C18,db_Artikel,5)","v":"ST"},{"$f":"VLOOKUP($C18,db_Artikel,6)","v":"J"},{"$f":"VLOOKUP($C18,db_Artikel,7)","v":58.85},{"$f":"IFERROR(B18*H18,\"\")","v":58.85}]
["Option",null,"KLL350500MOF",{"$f":"VLOOKUP($C19,db_Artikel,3)","v":"KL Lufttechnik Montagefüße f.KL350/KL500"},{"$f":"VLOOKUP($C19,db_Artikel,4)","v":"f.freistehende Mont.(2 Stk)"},{"$f":"VLOOKUP($C19,db_Artikel,5)","v":"SE"},{"$f":"VLOOKUP($C19,db_Artikel,6)","v":"N"},{"$f":"VLOOKUP($C19,db_Artikel,7)","v":135.15},0]
[null,{"$f":"IF(AND(B8=1,OR(Deckblatt!R33=4,Deckblatt!R33=5)),\"1\",\"\")","v":""},"KLL350500MOBD","KL Lufttechnik Montagebügel Decke","für KL350/KL500 ohne Bypass","SE","J",78.89,""]
[null,{"$f":"IF(AND(B9=1,OR(Deckblatt!R33=4,Deckblatt!R33=5)),\"1\",\"\")","v":""},"KLL350500MOBDB","KL Lufttechnik Montagebügel Decke","für KL350/KL500 mit Bypass","SE","J",83.87,""]
["Option",null,"KLL350500FSET","KL Lufttechnik 1x ZUL Filter F7 440x","300x47mm, 1x ABL Filter G4 440x280x47mm","SE","J",59.58,0]
["Option",null,"KLL350500FSETF9","KL Lufttechnik 1x ZUL Filter F9 440x","300x47mm, 1x ABL Filter G4 440x280x47mm","SE","N",101.83,0]
[]
[null,null,null,"Verteiltechnik Zu- und Abluft Anbindung"]
[null,2,"KLLZSDS16012MN",{"$f":"VLOOKUP($C26,db_Artikel,3)","v":"KL Lufttechnik Flexibler Schalldämpfer"},{"$f":"VLOOKUP($C26,db_Artikel,4)","v":"DN160, 1,2m, 48dB bei 250Hz, 50mm"},{"$f":"VLOOKUP($C26,db_Artikel,5)","v":"ST"},{"$f":"VLOOKUP($C26,db_Artikel,6)","v":"N"},{"$f":"VLOOKUP($C26,db_Artikel,7)","v":85.53},{"$f":"IFERROR(B26*H26,\"\")","v":171.06}]
[]
[null,null,null,"Verteiltechnik Schalldämmverteiler"]
[null,{"$f":"dB_AnzSDV","v":0},"KLLSDVEPP",{"$f":"VLOOKUP($C29,db_Artikel,3)","v":"KL Lufttechnik Schalldämmverteiler "},{"$f":"VLOOKUP($C29,db_Artikel,4)","v":"3x125/160mm Eing./28x75mm Ausg."},{"$f":"VLOOKUP($C29,db_Artikel,5)","v":"ST"},{"$f":"VLOOKUP($C29,db_Artikel,6)","v":"J"},{"$f":"VLOOKUP($C29,db_Artikel,7)","v":569.86},{"$f":"IFERROR(B29*H29,\"\")","v":0}]
[null,{"$f":"IF(B36=0,IF(db_AnzMaxAbg>14, 2,  IF(db_AnzMaxAbg>8,1,\"\")),\"\")","v":""},"KLLSDVEPPMOB",{"$f":"VLOOKUP($C30,db_Artikel,3)","v":"KL Lufttechnik Montagebügel Decke"},{"$f":"VLOOKUP($C30,db_Artikel,4)","v":"für Schalldämmverteiler SDVEPP"},{"$f":"VLOOKUP($C30,db_Artikel,5)","v":"ST"},{"$f":"VLOOKUP($C30,db_Artikel,6)","v":"J"},{"$f":"VLOOKUP($C30,db_Artikel,7)","v":69},{"$f":"IFERROR(B30*H30,\"\")","v":""}]
[null,{"$f":"IF(B36=0,dB_AnzBog,\"\")","v":0},"PKB75/87",{"$f":"VLOOKUP($C31,db_Artikel,3)","v":"Poloplast Polokal NG Bogen PKB2134 "},{"$f":"VLOOKUP($C31,db_Artikel,4)","v":"87,5 Grad DN75"},{"$f":"VLOOKUP($C31,db_Artikel,5)","v":"ST"},{"$f":"VLOOKUP($C31,db_Artikel,6)","v":"J"},{"$f":"VLOOKUP($C31,db_Artikel,7)","v":11.18},{"$f":"IFERROR(B31*H31,\"\")","v":0}]
[null,null,null,{"$f":"db_AnzAbgZUL","v":0},"aktive Zuluftanschlüsse"]
[null,null,null,{"$f":"db_AnzAbgABL","v":0},"aktive Abluftanschlüsse"]
[]
[null,null,null,"Anschlussplatte (max.16 Abgänge)"]
["Option",null,"KLLZSDVASPL/EPP",{"$f":"VLOOKUP($C36,db_Artikel,3)","v":"KL Lufttechnik Anschlussplatte für "},{"$f":"VLOOKUP($C36,db_Artikel,4)","v":"Schalldämmverteiler EPP"},{"$f":"VLOOKUP($C36,db_Artikel,5)","v":"ST"},{"$f":"VLOOKUP($C36,db_Artikel,6)","v":"J"},{"$f":"VLOOKUP($C36,db_Artikel,7)","v":109},{"$f":"IFERROR(B36*H36,\"\")","v":0}]
["Option",null,"KLLZSDVASPL/EW",{"$f":"VLOOKUP($C37,db_Artikel,3)","v":"KL Lufttechnik Anschlussplattenerweiterung"},{"$f":"VLOOKUP($C37,db_Artikel,4)","v":"zu EPP-Verteiler (2 Stück)"},{"$f":"VLOOKUP($C37,db_Artikel,5)","v":"ST"},{"$f":"VLOOKUP($C37,db_Artikel,6)","v":"J"},{"$f":"VLOOKUP($C37,db_Artikel,7)","v":88},{"$f":"IFERROR(B37*H37,\"\")","v":0}]
["Option",{"$f":"IF(B36>0, B36,\"\")","v":""},"KLLZKUNI75EPP",{"$f":"VLOOKUP($C38,db_Artikel,3)","v":"KL Lufttechnik Verbindungsset SDV"},{"$f":"VLOOKUP($C38,db_Artikel,4)","v":"und Anschlussplatte"},{"$f":"VLOOKUP($C38,db_Artikel,5)","v":"ST"},{"$f":"VLOOKUP($C38,db_Artikel,6)","v":"J"},{"$f":"VLOOKUP($C38,db_Artikel,7)","v":51},{"$f":"IFERROR(B38*H38,\"\")","v":""}]
["Option",null,"KLLZHASAP6",{"$f":"VLOOKUP($C39,db_Artikel,3)","v":"KL Lufttechnik Schlauchhalterung "},{"$f":"VLOOKUP($C39,db_Artikel,4)","v":"zu Anschlussplatte SDV, beidseitig (1PK=2STK)"},{"$f":"VLOOKUP($C39,db_Artikel,5)","v":"PK"},{"$f":"VLOOKUP($C39,db_Artikel,6)","v":"J"},{"$f":"VLOOKUP($C39,db_Artikel,7)","v":56.67},{"$f":"IFERROR(B39*H39,\"\")","v":0}]
["Option",null,"KLLZHASAP12",{"$f":"VLOOKUP($C40,db_Artikel,3)","v":"KL Lufttechnik Schlauchhalterung"},{"$f":"VLOOKUP($C40,db_Artikel,4)","v":"zu Anschlussplatte SDV, einseitig"},{"$f":"VLOOKUP($C40,db_Artikel,5)","v":"ST"},{"$f":"VLOOKUP($C40,db_Artikel,6)","v":"N"},{"$f":"VLOOKUP($C40,db_Artikel,7)","v":56.67},{"$f":"IFERROR(B40*H40,\"\")","v":0}]
[]
[null,null,null,"Verteiltechnik Sternverteiler"]
[null,{"$f":"IF(db_Verteiler=1,dB_AnzSTV_ZUL+dB_AnzSTV_ABL,\"\")","v":""},{"$f":"IF(Deckblatt!R37=1,K43,\"\")","v":""},{"$f":"VLOOKUP($C43,db_Artikel,3)","v":{"$error":"#N/A"}},{"$f":"VLOOKUP($C43,db_Artikel,4)","v":{"$error":"#N/A"}},{"$f":"VLOOKUP($C43,db_Artikel,5)","v":{"$error":"#N/A"}},{"$f":"VLOOKUP($C43,db_Artikel,6)","v":{"$error":"#N/A"}},{"$f":"VLOOKUP($C43,db_Artikel,7)","v":{"$error":"#N/A"}},{"$f":"IFERROR(B43*H43,\"\")","v":""},null,"KLLV125756"]
[null,{"$f":"IF(db_Verteiler=1,dB_AnzSTV_ZUL+dB_AnzSTV_ABL,\"\")","v":""},{"$f":"IF(Deckblatt!R37=1,K44,\"\")","v":""},{"$f":"VLOOKUP($C44,db_Artikel,3)","v":{"$error":"#N/A"}},{"$f":"VLOOKUP($C44,db_Artikel,4)","v":{"$error":"#N/A"}},{"$f":"VLOOKUP($C44,db_Artikel,5)","v":{"$error":"#N/A"}},{"$f":"VLOOKUP($C44,db_Artikel,6)","v":{"$error":"#N/A"}},{"$f":"VLOOKUP($C44,db_Artikel,7)","v":{"$error":"#N/A"}},{"$f":"IFERROR(B44*H44,\"\")","v":""},null,"KLLZSNFL125"]
["Option",null,"KLLFSD752",{"$f":"VLOOKUP($C45,db_Artikel,3)","v":"KL Lufttechnik Flachschalldämpfer 2xDN75"},{"$f":"VLOOKUP($C45,db_Artikel,4)","v":"Länge 500mm, 10dB bei 250Hz"},{"$f":"VLOOKUP($C45,db_Artikel,5)","v":"ST"},{"$f":"VLOOKUP($C45,db_Artikel,6)","v":"N"},{"$f":"VLOOKUP($C45,db_Artikel,7)","v":162.44},{"$f":"IFERROR(B45*H45,\"\")","v":0}]
[]
[null,null,null,"Verteiltechnik Zu- und Abluft Allgemein"]
[null,{"$f":"ROUNDUP(dB_SchlauchLen/5,-1)*5","v":0},"KLLZSCHL75",{"$f":"VLOOKUP($C48,db_Artikel,3)","v":"KL Lufttechnik Kunststoffschlauch DN75,"},{"$f":"VLOOKUP($C48,db_Artikel,4)","v":"PE AD:75mm, ID:63mm"},{"$f":"VLOOKUP($C48,db_Artikel,5)","v":"MT"},{"$f":"VLOOKUP($C48,db_Artikel,6)","v":"J"},{"$f":"VLOOKUP($C48,db_Artikel,7)","v":4.18},{"$f":"IFERROR(B48*H48,\"\")","v":0}]
[null,{"$f":"ROUNDDOWN(B48/51,0)","v":0},"KLLZVEM75","KL Lufttechnik Verbindungsmuffe","für Kunststoffschlauch DN75","ST","J",5.19,0]
[null,{"$f":"Deckblatt!U40","v":0},"KLLZSN10075","KL Lufttechnik Saugnische DN100","1x DN75 max. 30m3/h, PE","ST","J",13.91,0]
[null,{"$f":"Deckblatt!U40","v":0},"KLLZSNFL100","KL Lufttechnik Montageflansch DN100","für Saugnische DN100, PE","ST","J",6.44,0]
["Option",null,"KLLZSNVL100","KL Lufttechnik Verlängerung","für Saugnische DN100","ST","J",5.81,0]
[null,{"$f":"Deckblatt!U41","v":0},"KLLZSN125752","KL Lufttechnik Saugnische DN125","2x DN75 max. 60m3/h, PE","ST","J",25.64,0]
[null,{"$f":"Deckblatt!U41","v":0},"KLLZSNFL125","KL Lufttechnik Montageflansch DN125","für Saugnische DN125, PE","ST","J",8.51,0]
["Option",null,"KLLZSNVL125","KL Lufttechnik Verlängerung f. Saugn.125","und Verteiler KLLV125756","ST","J",7.27,0]
[null,{"$f":"SUM(B64:B67)+SUM(B73:B74)","v":0},"KLLZSDLR63","KL Lufttechnik Schalldämm-Luftregulier-","einlage f.Saugn. DN100/125 u. Verteiler","ST","J",8.7200000000000006,0]
[]
[null,null,null,"Sichtteile"]
[null,{"$f":"Deckblatt!U42-B61-B64-B66","v":0},"KLLZZULV100",{"$f":"VLOOKUP($C59,db_Artikel,3)","v":"KL Lufttechnik Zuluftventil DN100 rund"},{"$f":"VLOOKUP($C59,db_Artikel,4)","v":"aus Stahlb. m. Einbaurahmen weiß lack."},{"$f":"VLOOKUP($C59,db_Artikel,5)","v":"ST"},{"$f":"VLOOKUP($C59,db_Artikel,6)","v":"J"},{"$f":"VLOOKUP($C59,db_Artikel,7)","v":5.61},{"$f":"IFERROR(B59*H59,\"\")","v":0}]
[null,{"$f":"Deckblatt!U43-B62-B63-B65-B67","v":0},"KLLZZULV125","KL Lufttechnik Zuluftventil DN125 rund","aus Stahlb. m. Einbaurahmen weiß lack.","ST","J",6.95,0]
["Alternative",null,"KLLZULVW100","KL Lufttechnik Zuluftventil DN100 Wandm.","aus Stahlb. m. Einbaurahmen weiß lack.","ST","J",39.24,0]
["Alternative",null,"KLLZULVW125","KL Lufttechnik Zuluftventil DN125 Wandm.","aus Stahlb. m. Einbaurahmen weiß lack.","ST","J",46.09,0]
["Alternative",null,"KLLBOA801","KL Lufttechnik Vision Designauslass Floor","DN125 ZUL-A f. Boden, Saugn.u.Reguliere.","ST","J",286.49,0]
["Alternative",null,"KLLVD100C","KL Lufttechnik Vision Designgitter Cube","DN100 ABL-G f. Decke, ZUL/ABL-G f. Wand","ST","J",66.12,0]
["Alternative",null,"KLLVD125C","KL Lufttechnik Vision Designgitter Cube","DN125 ABL-G f. Decke, ZUL/ABL-G f. Wand","ST","J",66.12,0]
["Altern. DN100",null,"KLLVD100125P","KL Lufttechnik Vision Designgitter Plane","DN100/125 ZUL-G für Decke","ST","J",66.12,0]
["Altern. DN125",null,"KLLVD100125P","KL Lufttechnik Vision Designgitter Plane","DN100/125 ZUL-G für Decke","ST","J",66.12,0]
[null,{"$f":"Deckblatt!U44-B71-B73","v":0},"KLLZABLV100","KL Lufttechnik Abluftventil DN100 rund","aus Stahlb. m. Einbaurahmen weiß lack.","ST","J",5.61,0]
[null,{"$f":"Deckblatt!U45-B72-B74","v":0},"KLLZABLV125","KL Lufttechnik Abluftventil DN125 rund","aus Stahlb. m. Einbaurahmen weiß lack.","ST","J",6.95,0]
["Alternative",null,"KLLZABLV080",{"$f":"VLOOKUP($C70,db_Artikel,3)","v":"KL Lufttechnik Abluftventil DN80"},{"$f":"VLOOKUP($C70,db_Artikel,4)","v":"Kunststoff weiß"},{"$f":"VLOOKUP($C70,db_Artikel,5)","v":"ST"},{"$f":"VLOOKUP($C70,db_Artikel,6)","v":"J"},{"$f":"VLOOKUP($C70,db_Artikel,7)","v":12.04},0]
["Alternative",null,"KLLZABLV100F","KL Lufttechnik Abluftventil DN100 quad.","m.Filter aus Stahlbl. weiß lackiert","ST","N",60.1,0]
["Alternative",null,"KLLZABLV125F","KL Lufttechnik Abluftventil DN125 quad.","m.Filter aus Stahlbl. weiß lackiert","ST","N",76.400000000000006,0]
["Alternative",null,"KLLVD100C","KL Lufttechnik Vision Designgitter Cube","DN100 ABL-G f. Decke, ZUL/ABL-G f. Wand","ST","J",66.12,0]
["Alternative",null,"KLLVD125C","KL Lufttechnik Vision Designgitter Cube","DN125 ABL-G f. Decke, ZUL/ABL-G f. Wand","ST","J",66.12,0]
[null,{"$f":"ROUNDUP(Deckblatt!U44/10,-0.1)","v":0},"KLLZVFI100",{"$f":"VLOOKUP($C75,db_Artikel,3)","v":"KL Lufttechnik Ventilfilter G2 (10"},{"$f":"VLOOKUP($C75,db_Artikel,4)","v":"Stück) 100x150mm für Abluftventil DN100"},{"$f":"VLOOKUP($C75,db_Artikel,5)","v":"PK"},{"$f":"VLOOKUP($C75,db_Artikel,6)","v":"J"},{"$f":"VLOOKUP($C75,db_Artikel,7)","v":20.14},0]
[null,{"$f":"ROUNDUP(Deckblatt!U45/10,-0.1)","v":0},"KLLZVFI125",{"$f":"VLOOKUP($C76,db_Artikel,3)","v":"KL Lufttechnik Ventilfilter G2 (10"},{"$f":"VLOOKUP($C76,db_Artikel,4)","v":"Stück) 125x150mm für Abluftventil DN125"},{"$f":"VLOOKUP($C76,db_Artikel,5)","v":"PK"},{"$f":"VLOOKUP($C76,db_Artikel,6)","v":"J"},{"$f":"VLOOKUP($C76,db_Artikel,7)","v":20.14},0]
[null,{"$f":"B73","v":0},"KLLFIH100",{"$f":"VLOOKUP($C77,db_Artikel,3)","v":"KL Lufttechnik Filterhalterung DN100 für"},{"$f":"VLOOKUP($C77,db_Artikel,4)","v":"Ventilfilter in Komb. m. Vision Designg."},{"$f":"VLOOKUP($C77,db_Artikel,5)","v":"ST"},{"$f":"VLOOKUP($C77,db_Artikel,6)","v":"N"},{"$f":"VLOOKUP($C77,db_Artikel,7)","v":14.32},0]
[null,{"$f":"B74","v":0},"KLLFIH125",{"$f":"VLOOKUP($C78,db_Artikel,3)","v":"KL Lufttechnik Filterhalterung DN125 für"},{"$f":"VLOOKUP($C78,db_Artikel,4)","v":"Ventilfilter in Komb. m. Vision Designg."},{"$f":"VLOOKUP($C78,db_Artikel,5)","v":"ST"},{"$f":"VLOOKUP($C78,db_Artikel,6)","v":"N"},{"$f":"VLOOKUP($C78,db_Artikel,7)","v":17.23},0]
[]
[null,null,null,"Systemkomponenten Aussen- und Fortluft"]
[null,4,"KLLZIRO16015",{"$f":"VLOOKUP($C81,db_Artikel,3)","v":"KL Lufttechnik Isoliertes Lüftungsrohr"},{"$f":"VLOOKUP($C81,db_Artikel,4)","v":"DN160, Länge 1m, 15mm Wandst. inkl Muffe"},{"$f":"VLOOKUP($C81,db_Artikel,5)","v":"ST"},{"$f":"VLOOKUP($C81,db_Artikel,6)","v":"J"},{"$f":"VLOOKUP($C81,db_Artikel,7)","v":42.35},{"$f":"IFERROR(B81*H81,\"\")","v":169.4}]
[null,4,"KLLZIBO16015","KL Lufttechnik Isolierter Bogen 90 Grad","DN160, 15mm Wandstärke inkl. Muffe","ST","J",31.14,124.56]
["Option",null,"KLLZIVB16015","KL Lufttechnik Verbinder (Muffe) für","ISO-Rohrsystem DN160, 15mm Wandstärke","ST","J",9.44,0]
[null,4,"KLLZISCHE","KL Lufttechnik Befestigungsschelle für","ISO-Rohrsystem DN125 und DN160","ST","J",10.28,41.12]
[null,1,"KLLFLA160A","KL Lufttechnik AUL-Fassadenanschluss","DN160 für ISO-Rohrsystem 160/190","ST","J",165.66,165.66]
[null,1,"KLLFLA160F","KL Lufttechnik FOL-Fassadenanschluss","DN160 für ISO-Rohrsystem 160/190","ST","J",206.04,206.04]
["Alternative",null,"KLLZDAHAU160","KL Lufttechnik Dachhaube DN160","ohne Dachpfanne","ST","N",196.29,0]
["Alternative",null,"KLLZDAPF160","KL Lufttechnik Dachpfanne DN160","für 25-45 Grad Dachneigung","ST","N",167.95,0]
[]
[null,null,null,"Inbetriebnahme und Anlageneinregulierung"]
[null,1,"HOIBNKLWRL",{"$f":"VLOOKUP($C91,db_Artikel,3)","v":"Inbetriebnahme und Anlageneinregulierung"},null,{"$f":"VLOOKUP($C91,db_Artikel,5)","v":"PA"},{"$f":"VLOOKUP($C91,db_Artikel,6)","v":"J"},{"$f":"VLOOKUP($C91,db_Artikel,7)","v":385},{"$f":"IFERROR(B91*H91,\"\")","v":385}]
[]
[null,null,null,"Planung"]
["Option",null,"PLANMODUL2/2",{"$f":"VLOOKUP($C94,db_Artikel,3)","v":"Planung einer Komfortlüftungsanlage inkl. 2D-"},"Plänen, Luftmengen u. Massenauszug ",{"$f":"VLOOKUP($C94,db_Artikel,5)","v":"PA"},{"$f":"VLOOKUP($C94,db_Artikel,6)","v":"J"},{"$f":"VLOOKUP($C94,db_Artikel,7)","v":220},{"$f":"IFERROR(B94*H94,\"\")","v":0}]
[]
["BRUTTOLISTENPREIS in Euro exkl. MwSt.",null,null,null,null,null,null,"€",{"$f":"SUM(I8:I95)","v":4531.91}]
[]
["gültig bis 31.12.2025. KL-Lufttechnik übernimmt keine Gewähr für zukünftige Preisänderungen."]
[]
["ANNAHMEN: ","pro Zu- bzw. Abluftleitung wurde eine Länge von 12 m angenommen"]
[null,"für die Verteileranbindung wurden 2 Schalldämpfer mit einer Länge von je 1,2m angenommen"]
[null,"für die Aussen- bzw. Fortluftleitung wurde insgesamt eine Leitungslänge von 4m inkl. Befestigung bzw. 4 Bögen angenommen"]
[null,"für die  Aussenluftansaugung bzw. für die Fortluftausblasung wurde jeweils ein Wandgitter einkalkuliert"]
[]
["ACHTUNG:","Der vorliegende Kalkulationsvorschlag ist lediglich ein Kostenvoranschlag. "]
[null,"Sofern nicht anders angegeben, wird bei dem Kalkulationsvorschlag von einer üblichen Raumbelegung (Schlafzimmer 2 Pers,; Kind/"]
[null,"Gast/Büro je 1 Pers.; (Wohn-/Esszimmer im Mittel 3-4 Pers.) ausgegangen."]
[null,"Die Berechnung basiert auf der Grundlage der Ö Norm H 6038:2014"]
[null,"Etwaige zusätzliche Formteile (T-Stücke, Reduktionen…) sind nicht im Angebot enthalten"]
[]
["HAFTUNGSAUSSCHLUSS: "]
[null,"Die zur Verfügung gestellten Berechnungsergebnisse und Unterlagen sind vom ausführenden Installateur vor der Verwendung im Geschäftsbereich"]
[null,"eigenverantwortlich auf Vollständigkeit und Richtigkeit zu prüfen. Für die Richtigkeit und Vollständigkeit der Berechnungsergebnisse und/oder"]
[null,"eventuelle Folgeschäden und Kosten, die aufgrund fehlerhafter Berechnung entstanden sind und/oder entstehen können, übernimmt die Firma KL-Luft-"]
[null,"technik keine Haftung. Auch die Haftung für Erfüllungsgehilfen wird ausgeschlossen. Der Haftungsausschluss gilt für vertragliche und deliktische Ansprüche"]
[null,"Ausgenommen davon bleibt die Haftung wegen Vorsatz und grober Fahrlässigkeit."]

{"sheet":"KL500","index":5,"n_rows":116,"n_cols":11,"rows_kept":116,"cut":false,"hidden":true,"merged":[[0,1,0,2],[0,3,1,4],[0,5,0,7],[1,1,1,2],[1,5,1,7]]}
["Projekt Nr.:",{"$f":"Deckblatt!C5","v":1},null,"MATERIALAUFSTELLUNG FRISCHLUFTGERÄT KL500                                        INKL. VOC-FEUCHTESENSOR UND VORHEIZREGISTER",null,"Datum:",null,null,{"$f":"TODAY()","v":"2025-01-27"}]
["Kunde:",{"$f":"Deckblatt!C6","v":"Mustermann"},null,null,null,"Verkäufer:",null,null,{"$f":"Deckblatt!L6","v":"Mustermann"}]
[]
["Option/","Stück","Artikelnummer","Bezeichung 1","Bezeichnung 2","EH","L","Euro/EH","Euro/Summe"]
["Alternative",null,null,null,null,null,null,null,{"$f":"I96","v":4531.91}]
[]
[null,null,null,"Frischluftgerät KL500"]
[null,{"$f":"IF(B9=1,\"\",1)","v":1},{"$f":"IF(Deckblatt!R33=0,K8,IF(Deckblatt!R33=1,K12,IF(Deckblatt!R33=2,K10, IF(Deckblatt!R33=3,K14, IF(Deckblatt!R33=4,K10,IF(Deckblatt!R33=5,K14,))))))","v":"KLL500RV"},{"$f":"VLOOKUP($C8,db_Artikel,3)","v":"KL Lufttechnik Lüftungsgerät KL500 ZUL"},{"$f":"VLOOKUP($C8,db_Artikel,4)","v":"rechts mit VHR (Wand)"},{"$f":"VLOOKUP($C8,db_Artikel,5)","v":"ST"},{"$f":"VLOOKUP($C8,db_Artikel,6)","v":"J"},{"$f":"VLOOKUP($C8,db_Artikel,7)","v":3210.22},{"$f":"IFERROR(B8*H8,\"\")","v":3210.22},null,"KLL500RV"]
["Alternativ",null,{"$f":"IF(AND(C8=\"KLL500RV\"),K9,IF(AND(C8=\"KLL500RVE\"),K11,IF(AND(C8=\"KLL500LV\"),K13,IF(AND(C8=\"KLL500LVE\"),K15))))","v":"KLL500RVB"},{"$f":"VLOOKUP($C9,db_Artikel,3)","v":"KL Lufttechnik Lüftungsgerät KL500 ZUL"},{"$f":"VLOOKUP($C9,db_Artikel,4)","v":"rechts mit VHR und Bypass (Wand)"},{"$f":"VLOOKUP($C9,db_Artikel,5)","v":"ST"},{"$f":"VLOOKUP($C9,db_Artikel,6)","v":"N"},{"$f":"VLOOKUP($C9,db_Artikel,7)","v":3477.09},{"$f":"IFERROR(B9*H9,\"\")","v":0},null,"KLL500RVB"]
[null,null,null,null,null,null,null,null,null,null,"KLL500RVE"]
[null,null,null,"Regelungskomponenten KL500",null,null,null,null,null,null,"KLL500RVBE"]
["Option",null,"KLLBTM",{"$f":"VLOOKUP($C12,db_Artikel,3)","v":"KL Lufttechnik Bedienteil Mini"},{"$f":"VLOOKUP($C12,db_Artikel,4)","v":"kabelgebunden"},{"$f":"VLOOKUP($C12,db_Artikel,5)","v":"ST"},{"$f":"VLOOKUP($C12,db_Artikel,6)","v":"J"},{"$f":"VLOOKUP($C12,db_Artikel,7)","v":97.05},{"$f":"IFERROR(B12*H12,\"\")","v":0},null,"KLL500LV"]
["Option",null,"KLLBTS","KL Lufttechnik Bedienteil Smart",{"$f":"VLOOKUP($C13,db_Artikel,4)","v":"kabelgebunden"},"ST","J",394,{"$f":"IFERROR(B13*H13,\"\")","v":0},null,"KLL500LVB"]
["Option",null,"KLLBTAPRA","KL Lufttechnik Aufputzrahmen für Bedien-",{"$f":"VLOOKUP($C14,db_Artikel,4)","v":"teil MINI und SMART"},"ST","N",30.52,{"$f":"IFERROR(B14*H14,\"\")","v":0},null,"KLL500LVE"]
["Option",null,"KLLAUF","KL Lufttechnik Außentemperaturfühler",null,"ST","N",21.18,{"$f":"IFERROR(B15*H15,\"\")","v":0},null,"KLL500LVBE"]
[]
[null,null,null,"Zubehör KL500"]
[null,{"$f":"IF(Deckblatt!R33=0,1,IF(Deckblatt!R33=1,1,IF(Deckblatt!R33=2,1,IF(Deckblatt!R33=3,1,IF(Deckblatt!R33=4,\"\",IF(Deckblatt!R33=5,\"\"))))))","v":1},"KLLZSIFON",{"$f":"VLOOKUP($C18,db_Artikel,3)","v":"KL Lufttechnik Sifon mit Geruchssperre"},{"$f":"VLOOKUP($C18,db_Artikel,4)","v":"für KL170XV/KL170S/KL170 und KL350/500"},{"$f":"VLOOKUP($C18,db_Artikel,5)","v":"ST"},{"$f":"VLOOKUP($C18,db_Artikel,6)","v":"J"},{"$f":"VLOOKUP($C18,db_Artikel,7)","v":58.85},{"$f":"IFERROR(B18*H18,\"\")","v":58.85}]
["Option",null,"KLL350500MOF",{"$f":"VLOOKUP($C19,db_Artikel,3)","v":"KL Lufttechnik Montagefüße f.KL350/KL500"},{"$f":"VLOOKUP($C19,db_Artikel,4)","v":"f.freistehende Mont.(2 Stk)"},{"$f":"VLOOKUP($C19,db_Artikel,5)","v":"SE"},{"$f":"VLOOKUP($C19,db_Artikel,6)","v":"N"},{"$f":"VLOOKUP($C19,db_Artikel,7)","v":135.15},0]
[null,{"$f":"IF(AND(B8=1,OR(Deckblatt!R33=4,Deckblatt!R33=5)),\"1\",\"\")","v":""},"KLL350500MOBD","KL Lufttechnik Montagebügel Decke","für KL350/KL500 ohne Bypass","SE","J",78.89,""]
[null,{"$f":"IF(AND(B9=1,OR(Deckblatt!R33=4,Deckblatt!R33=5)),\"1\",\"\")","v":""},"KLL350500MOBDB","KL Lufttechnik Montagebügel Decke","für KL350/KL500 mit Bypass","SE","J",83.87,""]
["Option",null,"KLL350500FSET","KL Lufttechnik 1x ZUL Filter F7 440x","300x47mm, 1x ABL Filter G4 440x280x47mm","SE","J",59.58,0]
["Option",null,"KLL350500FSETF9","KL Lufttechnik 1x ZUL Filter F9 440x","300x47mm, 1x ABL Filter G4 440x280x47mm","SE","N",101.83,0]
[]
[null,null,null,"Verteiltechnik Zu- und Abluft Anbindung"]
[null,2,"KLLZSDS16012MN",{"$f":"VLOOKUP($C26,db_Artikel,3)","v":"KL Lufttechnik Flexibler Schalldämpfer"},{"$f":"VLOOKUP($C26,db_Artikel,4)","v":"DN160, 1,2m, 48dB bei 250Hz, 50mm"},{"$f":"VLOOKUP($C26,db_Artikel,5)","v":"ST"},{"$f":"VLOOKUP($C26,db_Artikel,6)","v":"N"},{"$f":"VLOOKUP($C26,db_Artikel,7)","v":85.53},{"$f":"IFERROR(B26*H26,\"\")","v":171.06}]
[]
[null,null,null,"Verteiltechnik Schalldämmverteiler"]
[null,{"$f":"dB_AnzSDV","v":0},"KLLSDVEPP",{"$f":"VLOOKUP($C29,db_Artikel,3)","v":"KL Lufttechnik Schalldämmverteiler "},{"$f":"VLOOKUP($C29,db_Artikel,4)","v":"3x125/160mm Eing./28x75mm Ausg."},{"$f":"VLOOKUP($C29,db_Artikel,5)","v":"ST"},{"$f":"VLOOKUP($C29,db_Artikel,6)","v":"J"},{"$f":"VLOOKUP($C29,db_Artikel,7)","v":569.86},{"$f":"IFERROR(B29*H29,\"\")","v":0}]
[null,{"$f":"IF(B36=0,IF(db_AnzMaxAbg>14, 2,  IF(db_AnzMaxAbg>8,1,\"\")),\"\")","v":""},"KLLSDVEPPMOB",{"$f":"VLOOKUP($C30,db_Artikel,3)","v":"KL Lufttechnik Montagebügel Decke"},{"$f":"VLOOKUP($C30,db_Artikel,4)","v":"für Schalldämmverteiler SDVEPP"},{"$f":"VLOOKUP($C30,db_Artikel,5)","v":"ST"},{"$f":"VLOOKUP($C30,db_Artikel,6)","v":"J"},{"$f":"VLOOKUP($C30,db_Artikel,7)","v":69},{"$f":"IFERROR(B30*H30,\"\")","v":""}]
[null,{"$f":"IF(B36=0,dB_AnzBog,\"\")","v":0},"PKB75/87",{"$f":"VLOOKUP($C31,db_Artikel,3)","v":"Poloplast Polokal NG Bogen PKB2134 "},{"$f":"VLOOKUP($C31,db_Artikel,4)","v":"87,5 Grad DN75"},{"$f":"VLOOKUP($C31,db_Artikel,5)","v":"ST"},{"$f":"VLOOKUP($C31,db_Artikel,6)","v":"J"},{"$f":"VLOOKUP($C31,db_Artikel,7)","v":11.18},{"$f":"IFERROR(B31*H31,\"\")","v":0}]
[null,null,null,{"$f":"db_AnzAbgZUL","v":0},"aktive Zuluftanschlüsse"]
[null,null,null,{"$f":"db_AnzAbgABL","v":0},"aktive Abluftanschlüsse"]
[]
[null,null,null,"Anschlussplatte (max.16 Abgänge)"]
["Option",null,"KLLZSDVASPL/EPP",{"$f":"VLOOKUP($C36,db_Artikel,3)","v":"KL Lufttechnik Anschlussplatte für "},{"$f":"VLOOKUP($C36,db_Artikel,4)","v":"Schalldämmverteiler EPP"},{"$f":"VLOOKUP($C36,db_Artikel,5)","v":"ST"},{"$f":"VLOOKUP($C36,db_Artikel,6)","v":"J"},{"$f":"VLOOKUP($C36,db_Artikel,7)","v":109},{"$f":"IFERROR(B36*H36,\"\")","v":0}]
["Option",null,"KLLZSDVASPL/EW",{"$f":"VLOOKUP($C37,db_Artikel,3)","v":"KL Lufttechnik Anschlussplattenerweiterung"},{"$f":"VLOOKUP($C37,db_Artikel,4)","v":"zu EPP-Verteiler (2 Stück)"},{"$f":"VLOOKUP($C37,db_Artikel,5)","v":"ST"},{"$f":"VLOOKUP($C37,db_Artikel,6)","v":"J"},{"$f":"VLOOKUP($C37,db_Artikel,7)","v":88},{"$f":"IFERROR(B37*H37,\"\")","v":0}]
["Option",{"$f":"IF(B36>0, B36,\"\")","v":""},"KLLZKUNI75EPP",{"$f":"VLOOKUP($C38,db_Artikel,3)","v":"KL Lufttechnik Verbindungsset SDV"},{"$f":"VLOOKUP($C38,db_Artikel,4)","v":"und Anschlussplatte"},{"$f":"VLOOKUP($C38,db_Artikel,5)","v":"ST"},{"$f":"VLOOKUP($C38,db_Artikel,6)","v":"J"},{"$f":"VLOOKUP($C38,db_Artikel,7)","v":51},{"$f":"IFERROR(B38*H38,\"\")","v":""}]
["Option",null,"KLLZHASAP6",{"$f":"VLOOKUP($C39,db_Artikel,3)","v":"KL Lufttechnik Schlauchhalterung "},{"$f":"VLOOKUP($C39,db_Artikel,4)","v":"zu Anschlussplatte SDV, beidseitig (1PK=2STK)"},{"$f":"VLOOKUP($C39,db_Artikel,5)","v":"PK"},{"$f":"VLOOKUP($C39,db_Artikel,6)","v":"J"},{"$f":"VLOOKUP($C39,db_Artikel,7)","v":56.67},{"$f":"IFERROR(B39*H39,\"\")","v":0}]
["Option",null,"KLLZHASAP12",{"$f":"VLOOKUP($C40,db_Artikel,3)","v":"KL Lufttechnik Schlauchhalterung"},{"$f":"VLOOKUP($C40,db_Artikel,4)","v":"zu Anschlussplatte SDV, einseitig"},{"$f":"VLOOKUP($C40,db_Artikel,5)","v":"ST"},{"$f":"VLOOKUP($C40,db_Artikel,6)","v":"N"},{"$f":"VLOOKUP($C40,db_Artikel,7)","v":56.67},{"$f":"IFERROR(B40*H40,\"\")","v":0}]
[]
[null,null,null,"Verteiltechnik Sternverteiler"]
[null,{"$f":"IF(db_Verteiler=1,dB_AnzSTV_ZUL+dB_AnzSTV_ABL,\"\")","v":""},{"$f":"IF(Deckblatt!R37=1,K43,\"\")","v":""},{"$f":"VLOOKUP($C43,db_Artikel,3)","v":{"$error":"#N/A"}},{"$f":"VLOOKUP($C43,db_Artikel,4)","v":{"$error":"#N/A"}},{"$f":"VLOOKUP($C43,db_Artikel,5)","v":{"$error":"#N/A"}},{"$f":"VLOOKUP($C43,db_Artikel,6)","v":{"$error":"#N/A"}},{"$f":"VLOOKUP($C43,db_Artikel,7)","v":{"$error":"#N/A"}},{"$f":"IFERROR(B43*H43,\"\")","v":""},null,"KLLV125756"]
[null,{"$f":"IF(db_Verteiler=1,dB_AnzSTV_ZUL+dB_AnzSTV_ABL,\"\")","v":""},{"$f":"IF(Deckblatt!R37=1,K44,\"\")","v":""},{"$f":"VLOOKUP($C44,db_Artikel,3)","v":{"$error":"#N/A"}},{"$f":"VLOOKUP($C44,db_Artikel,4)","v":{"$error":"#N/A"}},{"$f":"VLOOKUP($C44,db_Artikel,5)","v":{"$error":"#N/A"}},{"$f":"VLOOKUP($C44,db_Artikel,6)","v":{"$error":"#N/A"}},{"$f":"VLOOKUP($C44,db_Artikel,7)","v":{"$error":"#N/A"}},{"$f":"IFERROR(B44*H44,\"\")","v":""},null,"KLLZSNFL125"]
["Option",null,"KLLFSD752",{"$f":"VLOOKUP($C45,db_Artikel,3)","v":"KL Lufttechnik Flachschalldämpfer 2xDN75"},{"$f":"VLOOKUP($C45,db_Artikel,4)","v":"Länge 500mm, 10dB bei 250Hz"},{"$f":"VLOOKUP($C45,db_Artikel,5)","v":"ST"},{"$f":"VLOOKUP($C45,db_Artikel,6)","v":"N"},{"$f":"VLOOKUP($C45,db_Artikel,7)","v":162.44},{"$f":"IFERROR(B45*H45,\"\")","v":0}]
[]
[null,null,null,"Verteiltechnik Zu- und Abluft Allgemein"]
[null,{"$f":"ROUNDUP(dB_SchlauchLen/5,-1)*5","v":0},"KLLZSCHL75",{"$f":"VLOOKUP($C48,db_Artikel,3)","v":"KL Lufttechnik Kunststoffschlauch DN75,"},{"$f":"VLOOKUP($C48,db_Artikel,4)","v":"PE AD:75mm, ID:63mm"},{"$f":"VLOOKUP($C48,db_Artikel,5)","v":"MT"},{"$f":"VLOOKUP($C48,db_Artikel,6)","v":"J"},{"$f":"VLOOKUP($C48,db_Artikel,7)","v":4.18},{"$f":"IFERROR(B48*H48,\"\")","v":0}]
[null,{"$f":"ROUNDDOWN(B48/51,0)","v":0},"KLLZVEM75","KL Lufttechnik Verbindungsmuffe","für Kunststoffschlauch DN75","ST","J",5.19,0]
[null,{"$f":"Deckblatt!U40","v":0},"KLLZSN10075","KL Lufttechnik Saugnische DN100","1x DN75 max. 30m3/h, PE","ST","J",13.91,0]
[null,{"$f":"Deckblatt!U40","v":0},"KLLZSNFL100","KL Lufttechnik Montageflansch DN100","für Saugnische DN100, PE","ST","J",6.44,0]
["Option",null,"KLLZSNVL100","KL Lufttechnik Verlängerung","für Saugnische DN100","ST","J",5.81,0]
[null,{"$f":"Deckblatt!U41","v":0},"KLLZSN125752","KL Lufttechnik Saugnische DN125","2x DN75 max. 60m3/h, PE","ST","J",25.64,0]
[null,{"$f":"Deckblatt!U41","v":0},"KLLZSNFL125","KL Lufttechnik Montageflansch DN125","für Saugnische DN125, PE","ST","J",8.51,0]
["Option",null,"KLLZSNVL125","KL Lufttechnik Verlängerung f. Saugn.125","und Verteiler KLLV125756","ST","J",7.27,0]
[null,{"$f":"SUM(B64:B67)+SUM(B73:B74)","v":0},"KLLZSDLR63","KL Lufttechnik Schalldämm-Luftregulier-","einlage f.Saugn. DN100/125 u. Verteiler","ST","J",8.7200000000000006,0]
[]
[null,null,null,"Sichtteile"]
[null,{"$f":"Deckblatt!U42-B61-B64-B66","v":0},"KLLZZULV100",{"$f":"VLOOKUP($C59,db_Artikel,3)","v":"KL Lufttechnik Zuluftventil DN100 rund"},{"$f":"VLOOKUP($C59,db_Artikel,4)","v":"aus Stahlb. m. Einbaurahmen weiß lack."},{"$f":"VLOOKUP($C59,db_Artikel,5)","v":"ST"},{"$f":"VLOOKUP($C59,db_Artikel,6)","v":"J"},{"$f":"VLOOKUP($C59,db_Artikel,7)","v":5.61},{"$f":"IFERROR(B59*H59,\"\")","v":0}]
[null,{"$f":"Deckblatt!U43-B62-B63-B65-B67","v":0},"KLLZZULV125","KL Lufttechnik Zuluftventil DN125 rund","aus Stahlb. m. Einbaurahmen weiß lack.","ST","J",6.95,0]
["Alternative",null,"KLLZULVW100","KL Lufttechnik Zuluftventil DN100 Wandm.","aus Stahlb. m. Einbaurahmen weiß lack.","ST","J",39.24,0]
["Alternative",null,"KLLZULVW125","KL Lufttechnik Zuluftventil DN125 Wandm.","aus Stahlb. m. Einbaurahmen weiß lack.","ST","J",46.09,0]
["Alternative",null,"KLLBOA801","KL Lufttechnik Vision Designauslass Floor","DN125 ZUL-A f. Boden, Saugn.u.Reguliere.","ST","J",286.49,0]
["Alternative",null,"KLLVD100C","KL Lufttechnik Vision Designgitter Cube","DN100 ABL-G f. Decke, ZUL/ABL-G f. Wand","ST","J",66.12,0]
["Alternative",null,"KLLVD125C","KL Lufttechnik Vision Designgitter Cube","DN125 ABL-G f. Decke, ZUL/ABL-G f. Wand","ST","J",66.12,0]
["Altern. DN100",null,"KLLVD100125P","KL Lufttechnik Vision Designgitter Plane","DN100/125 ZUL-G für Decke","ST","J",66.12,0]
["Altern. DN125",null,"KLLVD100125P","KL Lufttechnik Vision Designgitter Plane","DN100/125 ZUL-G für Decke","ST","J",66.12,0]
[null,{"$f":"Deckblatt!U44-B71-B73","v":0},"KLLZABLV100","KL Lufttechnik Abluftventil DN100 rund","aus Stahlb. m. Einbaurahmen weiß lack.","ST","J",5.61,0]
[null,{"$f":"Deckblatt!U45-B72-B74","v":0},"KLLZABLV125","KL Lufttechnik Abluftventil DN125 rund","aus Stahlb. m. Einbaurahmen weiß lack.","ST","J",6.95,0]
["Alternative",null,"KLLZABLV080",{"$f":"VLOOKUP($C70,db_Artikel,3)","v":"KL Lufttechnik Abluftventil DN80"},{"$f":"VLOOKUP($C70,db_Artikel,4)","v":"Kunststoff weiß"},{"$f":"VLOOKUP($C70,db_Artikel,5)","v":"ST"},{"$f":"VLOOKUP($C70,db_Artikel,6)","v":"J"},{"$f":"VLOOKUP($C70,db_Artikel,7)","v":12.04},0]
["Alternative",null,"KLLZABLV100F","KL Lufttechnik Abluftventil DN100 quad.","m.Filter aus Stahlbl. weiß lackiert","ST","N",60.1,0]
["Alternative",null,"KLLZABLV125F","KL Lufttechnik Abluftventil DN125 quad.","m.Filter aus Stahlbl. weiß lackiert","ST","N",76.400000000000006,0]
["Alternative",null,"KLLVD100C","KL Lufttechnik Vision Designgitter Cube","DN100 ABL-G f. Decke, ZUL/ABL-G f. Wand","ST","J",66.12,0]
["Alternative",null,"KLLVD125C","KL Lufttechnik Vision Designgitter Cube","DN125 ABL-G f. Decke, ZUL/ABL-G f. Wand","ST","J",66.12,0]
[null,{"$f":"ROUNDUP(Deckblatt!U44/10,-0.1)","v":0},"KLLZVFI100",{"$f":"VLOOKUP($C75,db_Artikel,3)","v":"KL Lufttechnik Ventilfilter G2 (10"},{"$f":"VLOOKUP($C75,db_Artikel,4)","v":"Stück) 100x150mm für Abluftventil DN100"},{"$f":"VLOOKUP($C75,db_Artikel,5)","v":"PK"},{"$f":"VLOOKUP($C75,db_Artikel,6)","v":"J"},{"$f":"VLOOKUP($C75,db_Artikel,7)","v":20.14},0]
[null,{"$f":"ROUNDUP(Deckblatt!U45/10,-0.1)","v":0},"KLLZVFI125",{"$f":"VLOOKUP($C76,db_Artikel,3)","v":"KL Lufttechnik Ventilfilter G2 (10"},{"$f":"VLOOKUP($C76,db_Artikel,4)","v":"Stück) 125x150mm für Abluftventil DN125"},{"$f":"VLOOKUP($C76,db_Artikel,5)","v":"PK"},{"$f":"VLOOKUP($C76,db_Artikel,6)","v":"J"},{"$f":"VLOOKUP($C76,db_Artikel,7)","v":20.14},0]
[null,{"$f":"B73","v":0},"KLLFIH100",{"$f":"VLOOKUP($C77,db_Artikel,3)","v":"KL Lufttechnik Filterhalterung DN100 für"},{"$f":"VLOOKUP($C77,db_Artikel,4)","v":"Ventilfilter in Komb. m. Vision Designg."},{"$f":"VLOOKUP($C77,db_Artikel,5)","v":"ST"},{"$f":"VLOOKUP($C77,db_Artikel,6)","v":"N"},{"$f":"VLOOKUP($C77,db_Artikel,7)","v":14.32},0]
[null,{"$f":"B74","v":0},"KLLFIH125",{"$f":"VLOOKUP($C78,db_Artikel,3)","v":"KL Lufttechnik Filterhalterung DN125 für"},{"$f":"VLOOKUP($C78,db_Artikel,4)","v":"Ventilfilter in Komb. m. Vision Designg."},{"$f":"VLOOKUP($C78,db_Artikel,5)","v":"ST"},{"$f":"VLOOKUP($C78,db_Artikel,6)","v":"N"},{"$f":"VLOOKUP($C78,db_Artikel,7)","v":17.23},0]
[]
[null,null,null,"Systemkomponenten Aussen- und Fortluft"]
[null,4,"KLLZIRO16015",{"$f":"VLOOKUP($C81,db_Artikel,3)","v":"KL Lufttechnik Isoliertes Lüftungsrohr"},{"$f":"VLOOKUP($C81,db_Artikel,4)","v":"DN160, Länge 1m, 15mm Wandst. inkl Muffe"},{"$f":"VLOOKUP($C81,db_Artikel,5)","v":"ST"},{"$f":"VLOOKUP($C81,db_Artikel,6)","v":"J"},{"$f":"VLOOKUP($C81,db_Artikel,7)","v":42.35},{"$f":"IFERROR(B81*H81,\"\")","v":169.4}]
[null,4,"KLLZIBO16015","KL Lufttechnik Isolierter Bogen 90 Grad","DN160, 15mm Wandstärke inkl. Muffe","ST","J",31.14,124.56]
["Option",null,"KLLZIVB16015","KL Lufttechnik Verbinder (Muffe) für","ISO-Rohrsystem DN160, 15mm Wandstärke","ST","J",9.44,0]
[null,4,"KLLZISCHE","KL Lufttechnik Befestigungsschelle für","ISO-Rohrsystem DN125 und DN160","ST","J",10.28,41.12]
[null,1,"KLLFLA160A","KL Lufttechnik AUL-Fassadenanschluss","DN160 für ISO-Rohrsystem 160/190","ST","J",165.66,165.66]
[null,1,"KLLFLA160F","KL Lufttechnik FOL-Fassadenanschluss","DN160 für ISO-Rohrsystem 160/190","ST","J",206.04,206.04]
["Alternative",null,"KLLZDAHAU160","KL Lufttechnik Dachhaube DN160","ohne Dachpfanne","ST","N",196.29,0]
["Alternative",null,"KLLZDAPF160","KL Lufttechnik Dachpfanne DN160","für 25-45 Grad Dachneigung","ST","N",167.95,0]
[]
[null,null,null,"Inbetriebnahme und Anlageneinregulierung"]
[null,1,"HOIBNKLWRL",{"$f":"VLOOKUP($C91,db_Artikel,3)","v":"Inbetriebnahme und Anlageneinregulierung"},null,{"$f":"VLOOKUP($C91,db_Artikel,5)","v":"PA"},{"$f":"VLOOKUP($C91,db_Artikel,6)","v":"J"},{"$f":"VLOOKUP($C91,db_Artikel,7)","v":385},{"$f":"IFERROR(B91*H91,\"\")","v":385}]
[]
[null,null,null,"Planung"]
["Option",null,"PLANMODUL2/3",{"$f":"VLOOKUP($C94,db_Artikel,3)","v":"Planung einer Komfortlüftungsanlage inkl. 2D-"},{"$f":"VLOOKUP($C94,db_Artikel,4)","v":"Plänen, Luftmengen u. Massenauszug "},{"$f":"VLOOKUP($C94,db_Artikel,5)","v":"PA"},{"$f":"VLOOKUP($C94,db_Artikel,6)","v":"J"},{"$f":"VLOOKUP($C94,db_Artikel,7)","v":280},{"$f":"IFERROR(B94*H94,\"\")","v":0}]
[]
["BRUTTOLISTENPREIS in Euro exkl. MwSt.",null,null,null,null,null,null,"€",{"$f":"SUM(I8:I95)","v":4531.91}]
[]
["gültig bis 31.12.2025. KL-Lufttechnik übernimmt keine Gewähr für zukünftige Preisänderungen."]
[]
["ANNAHMEN: ","pro Zu- bzw. Abluftleitung wurde eine Länge von 12 m angenommen"]
[null,"für die Verteileranbindung wurden 2 Schalldämpfer mit einer Länge von je 1,2m angenommen"]
[null,"für die Aussen- bzw. Fortluftleitung wurde insgesamt eine Leitungslänge von 4m inkl. Befestigung bzw. 4 Bögen angenommen"]
[null,"für die  Aussenluftansaugung bzw. für die Fortluftausblasung wurde jeweils ein Wandgitter einkalkuliert"]
[]
["ACHTUNG:","Der vorliegende Kalkulationsvorschlag ist lediglich ein Kostenvoranschlag. "]
[null,"Sofern nicht anders angegeben, wird bei dem Kalkulationsvorschlag von einer üblichen Raumbelegung (Schlafzimmer 2 Pers,; Kind/"]
[null,"Gast/Büro je 1 Pers.; (Wohn-/Esszimmer im Mittel 3-4 Pers.) ausgegangen."]
[null,"Die Berechnung basiert auf der Grundlage der Ö Norm H 6038:2014"]
[null,"Etwaige zusätzliche Formteile (T-Stücke, Reduktionen…) sind nicht im Angebot enthalten"]
[]
["HAFTUNGSAUSSCHLUSS: "]
[null,"Die zur Verfügung gestellten Berechnungsergebnisse und Unterlagen sind vom ausführenden Installateur vor der Verwendung im Geschäftsbereich"]
[null,"eigenverantwortlich auf Vollständigkeit und Richtigkeit zu prüfen. Für die Richtigkeit und Vollständigkeit der Berechnungsergebnisse und/oder"]
[null,"eventuelle Folgeschäden und Kosten, die aufgrund fehlerhafter Berechnung entstanden sind und/oder entstehen können, übernimmt die Firma KL-Luft-"]
[null,"technik keine Haftung. Auch die Haftung für Erfüllungsgehilfen wird ausgeschlossen. Der Haftungsausschluss gilt für vertragliche und deliktische Ansprüche"]
[null,"Ausgenommen davon bleibt die Haftung wegen Vorsatz und grober Fahrlässigkeit."]

{"sheet":"Artikelübersicht","index":6,"n_rows":122,"n_cols":7,"rows_kept":122,"cut":false,"hidden":true,"merged":[]}
["Holter_Artikeln.","KLL_Artikeln.","BEZ1","BEZ2","EH","Lagernd","UVP 2024"]
["HOIBNKLWRL",null,"Inbetriebnahme und Anlageneinregulierung"," ","PA","J",385]
["KLL170ASPLM","11KL170-ASPL-M","KL Lufttechnik Anschlussplatte Massivwand","KL170XV/KL170S/KL170, auch f. WC Modul","ST","N",182.07]
["KLL170ASPLSW","11KL170-ASPL-SW","KL Lufttechnik Anschlussplatte Ständerwand","KL170XV/KL170S/KL170, auch f. WC Modul","ST","N",150.41]
["KLL170EBR","11KL170-EBR","KL Lufttechnik Einbaurahmen für KL170 2","Stück lang und 2 Stück kurz","SE","N",108.99]
["KLL170EBR/H","11KL170-EBR-H","KL Lufttechnik Einbaurahmen für KL170","2 St. lang, 1 St. kurz, 1 St. kurz/hoch","SE","N",122.07]
["KLL170EBRH","11KL170-EBRH","KL Lufttechnik Einbaurahmenhalterung","für KL170, 4 Stk.","SE","N",51.8]
["KLL170FSET","11KL170-FI-SET","KL Lufttechnik 1x ZUL Filter F7 250x","250x47mm, 1x ABL Filter G4 250x230x47mm","SE","J",50.76]
["KLL170FSETF9","11KL170-FI-Set-F9","KL Lufttechnik 1x ZUL Filter F9 250x","250x47mm, 1x ABL Filter G4 250x230x47mm","SE","J",94.15]
["KLL170LE","11KL170-L-E","KL Lufttechnik Lüftungsgerät KL170 ZUL","links mit Enthalpie WT (Wand/Decke)","ST","N",3006.98]
["KLL170LV","11KL170-LV","KL Lufttechnik Lüftungsgerät KL170 ZUL","links mit VHR (Wand)","ST","N",2515.69]
["KLL170LVE","11KL170-LV-E","KL Lufttechnik Lüftungsgerät KL170 ZUL","li. m. VHR u. Enthalpie WT (Wand/Decke)","ST","N",3100.51]
["KLL170NHR","11KL170-NHR","KL Lufttechnik PTC-Nachheizregister","für KL170XV/KL170S/KL170","ST","N",206.04]
["KLL170RE","11KL170-R-E","KL Lufttechnik Lüftungsgerät KL170 ZUL","rechts mit Enthalpie WT (Wand/Decke)","ST","N",3006.98]
["KLL170RV","11KL170-RV","KL Lufttechnik Lüftungsgerät KL170 ZUL","rechts mit VHR (Wand)","ST","N",2515.69]
["KLL170RVE","11KL170-RV-E","KL Lufttechnik Lüftungsgerät KL170 ZUL","re. m. VHR u. Enthalpie WT (Wand/Decke)","ST","N",3100.51]
["KLL170SLE","11KL170-SL-E","KL Lufttechnik Lüftungsgerät KL170S ZUL","links mit Enthalpie WT (Wand/Decke)","ST","N",2541.02]
["KLL170SLV","11KL170-SLV","KL Lufttechnik Lüftungsgerät KL170S ZUL","links mit VHR (Wand)","ST","J",2218.21]
["KLL170SLVE","11KL170-SLV-E","KL Lufttechnik Lüftungsgerät KL170S ZUL","li. m. VHR u. Enthalpie WT (Wand/Decke)","ST","J",2641.71]
["KLL170SRE","11KL170-SR-E","KL Lufttechnik Lüftungsgerät KL170S ZUL","rechts mit Enthalpie WT (Wand/Decke)","ST","N",2541.02]
["KLL170SRV","11KL170-SRV","KL Lufttechnik Lüftungsgerät KL170S ZUL","rechts mit VHR (Wand)","ST","J",2218.21]
["KLL170SRVE","11KL170-SRV-E","KL Lufttechnik Lüftungsgerät KL170S ZUL","re. m. VHR u. Enthalpie WT (Wand/Decke)","ST","J",2641.71]
["KLL170XV","11KL170-XV","KL Lufttechnik Lüftungsgerät KL170XV ZUL","li .od.re, m. VHR (Wand)","ST","J",1778.82]
["KLL170XVE","11KL170-XV-E","KL Lufttechnik Lüftungsgerät KL170XVE ZUL","li/re, m.VHR u.Enthalpie WT (Wand/Decke)","ST","J",2161.12]
["KLL170XVFSET","11KL170-XV-FI-SET","KL Lufttechnik Filterset für KL170XV","1xZUL Filter F7, 1xABL Filter G4","SE","J",42.04]
["KLL170XVFSETF9","11KL170-XV-FI-SET-F9","KL Lufttechnik Filterset für KL170XV","1xZUL Filter F9, 1xABL Filter G4","SE","N",82]
["KLL350500FSET","11KL350/500-FI-SET","KL Lufttechnik 1x ZUL Filter F7 440x","300x47mm, 1x ABL Filter G4 440x280x47mm","SE","J",59.58]
["KLL350500FSETF9","11KL350/500-FI-SET-F9","KL Lufttechnik 1x ZUL Filter F9 440x","300x47mm, 1x ABL Filter G4 440x280x47mm","SE","N",101.83]
["KLL350500MOBD","11KL350/500-MOBD","KL Lufttechnik Montagebügel Decke","für KL350/KL500 ohne Bypass","SE","J",78.89]
["KLL350500MOBDB","11KL350/500-MOBDB","KL Lufttechnik Montagebügel Decke","für KL350/KL500 mit Bypass","SE","J",83.87]
["KLL350500MOF","11KL350/500-MOF","KL Lufttechnik Montagefüße f.KL350/KL500","f.freistehende Mont.(2 Stk)","SE","N",135.15]
["KLL350LBE","11KL350-LB-E","KL Lufttechnik Lüftungsgerät KL350 ZUL","li. m. Byp. u. Enthalpie WT (Wand/Decke)","ST","N",4095.43]
["KLL350LV","11KL350-LV","KL Lufttechnik Lüftungsgerät KL350 ZUL","links mit VHR (Wand)","ST","N",3210.22]
["KLL350LVB","11KL350-LVB","KL Lufttechnik Lüftungsgerät KL350 ZUL","links mit VHR mit Bypass (Wand)","ST","J",3477.09]
["KLL350LVBE","11KL350-LVB-E","KL Lufttechnik Lüftungsgerät KL350 ZUL","li.m.VHR, Byp.u.Enthalpie WT, Wand/Decke","ST","J",4222.47]
["KLL350LVE","11KL350-LV-E","KL Lufttechnik Lüftungsgerät KL350 ZUL","li. m. VHR u. Enthalpie WT (Wand/Decke)","ST","N",3955.61]
["KLL350RBE","11KL350-RB-E","KL Lufttechnik Lüftungsgerät KL350 ZUL","re. m. Byp. u. Enthalpie WT (Wand/Decke)","ST","N",4095.43]
["KLL350RV","11KL350-RV","KL Lufttechnik Lüftungsgerät KL350 ZUL","rechts mit VHR (Wand)","ST","N",3210.22]
["KLL350RVB","11KL350-RVB","KL Lufttechnik Lüftungsgerät KL350 ZUL","rechts mit VHR mit Bypass (Wand)","ST","J",3477.09]
["KLL350RVBE","11KL350-RVB-E","KL Lufttechnik Lüftungsgerät KL350 ZUL","re.m.VHR, Byp.u.Enthalpie WT, Wand/Decke","ST","J",4222.47]
["KLL350RVE","11KL350-RV-E","KL Lufttechnik Lüftungsgerät KL350 ZUL","re.m.VHR u.Enthalpie WT (Wand/Decke)","ST","N",3955.61]
["KLL500LBE","11KL500-LB-E","KL Lufttechnik Lüftungsgerät KL500 ZUL","li. m. Byp. u. Enthalpie WT (Wand/Decke)","ST","N",4095.43]
["KLL500LV","11KL500-LV","KL Lufttechnik Lüftungsgerät KL500 ZUL","links mit VHR (Wand)","ST","N",3210.22]
["KLL500LVB","11KL500-LVB","KL Lufttechnik Lüftungsgerät KL500 ZUL","links mit VHR mit Bypass (Wand)","ST","N",3477.09]
["KLL500LVBE","11KL500-LVB-E","KL Lufttechnik Lüftungsgerät KL500 ZUL","li.m.VHR, Byp.u.Enthalpie WT, Wand/Decke","ST","N",4222.47]
["KLL500LVE","11KL500-LV-E","KL Lufttechnik Lüftungsgerät KL500 ZUL","li. m. VHR u. Enthalpie WT (Wand/Decke)","ST","N",3955.61]
["KLL500RBE","11KL500-RB-E","KL Lufttechnik Lüftungsgerät KL500 ZUL","re. m. Byp. u. Enthalpie WT (Wand/Decke)","ST","N",4095.43]
["KLL500RV","11KL500-RV","KL Lufttechnik Lüftungsgerät KL500 ZUL","rechts mit VHR (Wand)","ST","J",3210.22]
["KLL500RVB","11KL500-RVB","KL Lufttechnik Lüftungsgerät KL500 ZUL","rechts mit VHR und Bypass (Wand)","ST","N",3477.09]
["KLL500RVBE","11KL500-RVB-E","KL Lufttechnik Lüftungsgerät KL500 ZUL","re.m.VHR, Byp.u.Enthalpie WT, Wand/Decke","ST","N",4222.47]
["KLL500RVE","11KL500-RV-E","KL Lufttechnik Lüftungsgerät KL500 ZUL","re. m. VHR u. Enthalpie WT (Wand/Decke)","ST","N",3955.61]
["KLLAUF","11AUF","KL Lufttechnik Außentemperaturfühler",null,"ST","N",21.18]
["KLLBOA801","11KL-BOA80-1","KL Lufttechnik Vision Designauslass Floor","DN125 ZUL-A f. Boden, Saugn.u.Reguliere.","ST","J",286.49]
["KLLBTAPRA","11BT-APRA","KL Lufttechnik Aufputzrahmen für Bedien-","teil MINI und SMART","ST","N",30.52]
["KLLBTM","11BTM","KL Lufttechnik Bedienteil Mini","kabelgebunden","ST","J",97.05]
["KLLBTS","11BTS","KL Lufttechnik Bedienteil Smart","kabelgebunden","ST","J",394]
["KLLFIH100","11KL-FIH100","KL Lufttechnik Filterhalterung DN100 für","Ventilfilter in Komb. m. Vision Designg.","ST","N",14.32]
["KLLFIH125","11KL-FIH125","KL Lufttechnik Filterhalterung DN125 für","Ventilfilter in Komb. m. Vision Designg.","ST","N",17.23]
["KLLFLA125A","11FLA125-A","KL Lufttechnik AUL-Fassadenanschluss","DN125 für ISO-Rohrsystem 125/155","ST","J",137.33000000000001]
["KLLFLA125AF","11FLA125-AF","KL Lufttechnik AUL/FOL-Fassadenanschluss","DN125 für ISO-Rohrsystem 125/155","ST","N",34.880000000000003]
["KLLFLA125F","11FLA125-F","KL Lufttechnik FOL-Fassadenanschluss","DN125 für ISO-Rohrsystem 125/155","ST","J",188.6]
["KLLFLA125LAF","11FLA125-L-AF","KL Lufttechnik AUL-FOL Fassadenanschl.","DN125 AUL links","ST","J",213.62]
["KLLFLA125RAF","11FLA125-R-AF","KL Lufttechnik AUL-FOL Fassadenanschl.","DN125 AUL rechts","ST","J",213.62]
["KLLFLA160A","11FLA160-A","KL Lufttechnik AUL-Fassadenanschluss","DN160 für ISO-Rohrsystem 160/190","ST","J",165.66]
["KLLFLA160F","11FLA160-F","KL Lufttechnik FOL-Fassadenanschluss","DN160 für ISO-Rohrsystem 160/190","ST","J",206.04]
["KLLFSD752","11FSD75-2","KL Lufttechnik Flachschalldämpfer 2xDN75","Länge 500mm, 10dB bei 250Hz","ST","N",162.44]
["KLLKUNI125","11KUNI125","KL Lufttechnik Kunststoff Nippel ","DN125","ST","N",10.69]
["KLLSDVEPP","11SDVEPP","KL Lufttechnik Schalldämmverteiler ","3x125/160mm Eing./28x75mm Ausg.","ST","J",569.86]
["KLLSDVEPPMOB","11SDV-EPP-MOB","KL Lufttechnik Montagebügel Decke","für Schalldämmverteiler SDVEPP","ST","J",69]
["KLLSEP","11KL-SEP","KL Lufttechnik Sensorplatine mit VOC-","Luftqualitäts- und Feuchtesensor","ST","J",233.24]
["KLLV125756","11V125-75-6","KL Lufttechnik Sternverteiler (Kunstst.)","1x125 Eingang und 6x75mm Ausgang, 90Grad","ST","J",53.46]
["KLLVD100125P","11KL-VD100-125-P","KL Lufttechnik Vision Designgitter Plane","DN100/125 ZUL-G für Decke","ST","J",66.12]
["KLLVD100C","11KL-VD100-C","KL Lufttechnik Vision Designgitter Cube","DN100 ABL-G f. Decke, ZUL/ABL-G f. Wand","ST","J",66.12]
["KLLVD125C","11KL-VD125-C","KL Lufttechnik Vision Designgitter Cube","DN125 ABL-G f. Decke, ZUL/ABL-G f. Wand","ST","J",66.12]
["KLLZABLV080","11ZABLV080","KL Lufttechnik Abluftventil DN80","Kunststoff weiß","ST","J",12.04]
["KLLZABLV100","11ZABLV100","KL Lufttechnik Abluftventil DN100 rund","aus Stahlb. m. Einbaurahmen weiß lack.","ST","J",5.61]
["KLLZABLV100F","11ZABLV100F","KL Lufttechnik Abluftventil DN100 quad.","m.Filter aus Stahlbl. weiß lackiert","ST","N",60.1]
["KLLZABLV125","11ZABLV125","KL Lufttechnik Abluftventil DN125 rund","aus Stahlb. m. Einbaurahmen weiß lack.","ST","J",6.95]
["KLLZABLV125F","11ZABLV125F","KL Lufttechnik Abluftventil DN125 quad.","m.Filter aus Stahlbl. weiß lackiert","ST","N",76.400000000000006]
["KLLZAFS125","11ZAFS125","KL Lufttechnik Aluflex Schlauch DN125,","Länge 5m, zweilagig","ST","J",37.68]
["KLLZAFS160","11ZAFS160","KL Lufttechnik Aluflex Schlauch DN160,","Länge 5m, zweilagig","ST","J",53.04]
["KLLZDAHAU125","11ZDAHAU125","KL Lufttechnik Dachhaube DN125","ohne Dachpfanne","ST","N",187.57]
["KLLZDAHAU160","11ZDAHAU160","KL Lufttechnik Dachhaube DN160","ohne Dachpfanne","ST","N",196.29]
["KLLZDAPF125","11ZDAPF125","KL Lufttechnik Dachpfanne DN125","für 25-45 Grad Dachneigung","ST","N",162.86000000000001]
["KLLZDAPF160","11ZDAPF160","KL Lufttechnik Dachpfanne DN160","für 25-45 Grad Dachneigung","ST","N",167.95]
["KLLZHASAP12","11ZHASAP12","KL Lufttechnik Schlauchhalterung","zu Anschlussplatte SDV, einseitig","ST","N",56.67]
["KLLZHASAP6","11ZHASAP6","KL Lufttechnik Schlauchhalterung ","zu Anschlussplatte SDV, beidseitig (1PK=2STK)","PK","J",56.67]
["KLLZIBO125","11ZIBO125","KL Lufttechnik Isolierter Bogen 90 Grad","DN125, 15mm Wandstärke inkl. Muffe","ST","J",27.82]
["KLLZIBO16015","11ZIBO160-15","KL Lufttechnik Isolierter Bogen 90 Grad","DN160, 15mm Wandstärke inkl. Muffe","ST","J",31.14]
["KLLZIRO125","11ZIRO125","KL Lufttechnik Isoliertes Lüftungsrohr","DN125, Länge 1m, 15mm Wandst. inkl Muffe","ST","J",31.76]
["KLLZIRO16015","11ZIRO160-15","KL Lufttechnik Isoliertes Lüftungsrohr","DN160, Länge 1m, 15mm Wandst. inkl Muffe","ST","J",42.35]
["KLLZISCHE","11ZISCHE","KL Lufttechnik Befestigungsschelle für","ISO-Rohrsystem DN125 und DN160","ST","J",10.28]
["KLLZIVB125","11ZIVB125","KL Lufttechnik Verbinder (Muffe) für","ISO-Rohrsystem DN125, 15mm Wandstärke","ST","J",9.02]
["KLLZIVB16015","11ZIVB160-15","KL Lufttechnik Verbinder (Muffe) für","ISO-Rohrsystem DN160, 15mm Wandstärke","ST","J",9.44]
["KLLZKUNI75EPP","11ZKUNI75-EPP","KL Lufttechnik Verbindungsset SDV","und Anschlussplatte","ST","J",51]
["KLLZRKL80120D","11ZRKL80x120-D","KL Lufttechnik Revisionsklappe 80x120cm","für KL170-XV und KL-Box, Deckeneinbau","ST","J",237.6]
["KLLZRKL80120W","11ZRKL80x120-W","KL Lufttechnik Revisionsklappe 80x120cm","für KL170-XV und KL-Box, Wandeinbau","ST","N",237.6]
["KLLZSCHL75","11ZSCHL75","KL Lufttechnik Kunststoffschlauch DN75,","PE AD:75mm, ID:63mm","MT","J",4.18]
["KLLZSDLR63","11ZSDLR63","KL Lufttechnik Schalldämm-Luftregulier-","einlage f.Saugn. DN100/125 u. Verteiler","ST","J",8.7200000000000006]
["KLLZSDS12506M","11ZSDS125-0,6-MM","KL Lufttechnik Flexibler Schalldämpfer","DN125, 0,6m, 27dB bei 250Hz, 50mm","ST","N",56.57]
["KLLZSDS1251MN","11ZSDS125-1-MN","KL Lufttechnik Flexibler Schalldämpfer","DN125, 1m, 32dB bei 250Hz, 25mm","ST","J",70.58]
["KLLZSDS16012MN","11ZSDS160-1,2-MN","KL Lufttechnik Flexibler Schalldämpfer","DN160, 1,2m, 48dB bei 250Hz, 50mm","ST","N",85.53]
["KLLZSDVASPL/EPP","11ZSDVASPL-EPP","KL Lufttechnik Anschlussplatte für ","Schalldämmverteiler EPP","ST","J",109]
["KLLZSDVASPL/EW","11ZSDVASPL-EW","KL Lufttechnik Anschlussplattenerweiterung","zu EPP-Verteiler (2 Stück)","ST","J",88]
["KLLZSIFON","11ZSIFON","KL Lufttechnik Sifon mit Geruchssperre","für KL170XV/KL170S/KL170 und KL350/500","ST","J",58.85]
["KLLZSN10075","11ZSN100-75","KL Lufttechnik Saugnische DN100","1x DN75 max. 30m3/h, PE","ST","J",13.91]
["KLLZSN125752","11ZSN125-75-2","KL Lufttechnik Saugnische DN125","2x DN75 max. 60m3/h, PE","ST","J",25.64]
["KLLZSNFL100","11ZSNFL100","KL Lufttechnik Montageflansch DN100","für Saugnische DN100, PE","ST","J",6.44]
["KLLZSNFL125","11ZSNFL125","KL Lufttechnik Montageflansch DN125","für Saugnische DN125, PE","ST","J",8.51]
["KLLZSNVL100","11ZSNVL100","KL Lufttechnik Verlängerung","für Saugnische DN100","ST","J",5.81]
["KLLZSNVL125","11ZSNVL125","KL Lufttechnik Verlängerung f. Saugn.125","und Verteiler KLLV125756","ST","J",7.27]
["KLLZULVW100","11ZULVW100","KL Lufttechnik Zuluftventil DN100 Wandm.","aus Stahlb. m. Einbaurahmen weiß lack.","ST","J",39.24]
["KLLZULVW125","11ZULVW125","KL Lufttechnik Zuluftventil DN125 Wandm.","aus Stahlb. m. Einbaurahmen weiß lack.","ST","J",46.09]
["KLLZVEM75","11ZVEM75","KL Lufttechnik Verbindungsmuffe","für Kunststoffschlauch DN75","ST","J",5.19]
["KLLZVFI100","11ZVFI100","KL Lufttechnik Ventilfilter G2 (10","Stück) 100x150mm für Abluftventil DN100","PK","J",20.14]
["KLLZVFI125","11ZVFI125","KL Lufttechnik Ventilfilter G2 (10","Stück) 125x150mm für Abluftventil DN125","PK","J",20.14]
["KLLZZULV100","11ZZULV100","KL Lufttechnik Zuluftventil DN100 rund","aus Stahlb. m. Einbaurahmen weiß lack.","ST","J",5.61]
["KLLZZULV125","11ZZULV125","KL Lufttechnik Zuluftventil DN125 rund","aus Stahlb. m. Einbaurahmen weiß lack.","ST","J",6.95]
["PKB75/87",null,"Poloplast Polokal NG Bogen PKB2134 ","87,5 Grad DN75","ST","J",11.18]
["PLANMODUL2/1",null,"Planung einer Komfortlüftungsanlage inkl. 2D-","Plänen, Luftmengen u. Massenauszug ","PA","J",175]
["PLANMODUL2/2",null,"Planung einer Komfortlüftungsanlage inkl. 2D-","Plänen, Luftmengen u. Massenauszug ","PA","J",220]
["PLANMODUL2/3",null,"Planung einer Komfortlüftungsanlage inkl. 2D-","Plänen, Luftmengen u. Massenauszug ","PA","J",280]